Cogmind - Beta 12 X1 @@@ ROGUE MODE // 2022.07.12 @ 19:33:39 Player: Terminus Result: Escaped! Performance ------------- Evolutions (9) 4500 Regions Visited (30) 6000 Robots Destroyed (663) 3315 Value Destroyed (35454) 35454 Prototype IDs (229) 4580 Alien Tech Used (13) 2600 Bonus (37428) 37428 TOTAL SCORE: 93877 Bonus ------- Triggered High Security 500 High Alert Combat Kills 17822 Follower Combat Kills 2853 Entered Garrisons 600 Used RIF Installer 1500 Network Hubs Disabled 200 Met Data Miner 300 Used Data Conduit 3000 Built Enhanced Grunts 300 Found Hidden Lab 3000 Decrypted A0 Command 3000 Met R17 at Research 2000 Scanned by Researcher 500 Pursued by Intercept 1500 Win 3000 Friendly Fire -2647 Cogmind --------- Core Integrity 1253/1600 Matter 298/300 Energy 388/400 System Corruption 6% Temperature Cool (8) Movement Walking (117) Location To Epsilon Eridani Parts ------- > --- POWER (4) -------- Micro Antimatter Reactor > --- PROPULSION (5) --- Myomer Leg Myomer Leg Biometal Leg Centrium Leg > --- UTILITY (13) ----- Experimental Heat Sink Large Storage Unit Experimental Targeting Computer Experimental Targeting Computer Experimental Target Analyzer Experimental Core Analyzer Experimental Core Analyzer SHELL Armor > --- WEAPON (4) ------- KE Penetrator KE Penetrator Helical Railgun > --- INVENTORY (15) --- Light Quantum Reactor Improved Quantum Reactor Experimental Energy Well (600) Advanced Kinecellerator Experimental Reaction Control System Advanced Phase Shifter Advanced Hardlight Generator Transdimensional Reconstructor Transdimensional Reconstructor Phase Gun Enhanced Nova Cannon Guided Remote Datajack Peak State ------------ > --- POWER ------------ Graviton Reactor Light Quantum Reactor Vortex Chain Reactor > --- PROPULSION ------- Centrium Leg Centrium Leg Centrium Leg Centrium Leg High-density Centrium Leg > --- UTILITY ---------- Experimental Heat Sink Large Storage Unit Advanced Signal Interpreter Experimental Targeting Computer Experimental Targeting Computer Experimental Target Analyzer Experimental Core Analyzer Improved Weapon Cycler SHELL Armor Experimental EM Disruption Field Deep Network Scanner > --- WEAPON ----------- Sigix Sheargun Sigix Sheargun Sigix Sheargun Hypervelocity Multirail > --- INVENTORY -------- Light Quantum Reactor Light Quantum Reactor Light Quantum Reactor Experimental Energy Well Advanced Phase Shifter Advanced Hardlight Generator Relay Coupler [Proto] Relay Coupler [Proto] Relay Coupler [Proto] Transdimensional Reconstructor Transdimensional Reconstructor Sigix Sheargun Sigix Sheargun Enhanced Nova Cannon Guided Remote Datajack [Rating: 243] Favorites ----------- Power Heavy Ion Engine Engine Heavy Ion Engine Power Core Light Fission Core Reactor Vortex Chain Reactor Propulsion Centrium Leg Leg Centrium Leg Wheel Wheel Utility Large Storage Unit Device Improved Cooling System Storage Large Storage Unit Processor Experimental Targeting Computer Hackware Deep Network Scanner Protection Hardened Medium Armor Plating Artifact LC Capacitor Weapon Enhanced Quantum Rifle Energy Gun Enhanced Quantum Rifle Energy Cannon Heavy Plasma Cannon Ballistic Gun Hypervelocity Multirail Ballistic Cannon Omega Cannon Launcher Mini Grenade Launcher Special Weapon Improved Plasma Cutter Impact Weapon Core Stripper Slashing Weapon Axe Build | -11 -10 -10 -9 -9 -8 -8 -8 -7 -7 -7 -7 -6 -6 -6 -6 -6 -6 -5 -5 -4 -4 -4 -3 -3 -3 -2 -2 -2 -1 -1 ------- Run | Scr Mat Min Mat Min Mat Sto Gar Fac Low Low Dat Pro Fac Ext Cet Arc Hub Fac Gar Fac Arm Lab Res Qua Sec Res Tes Gar Acc Com Slots Evolved 18 | . . . 2 . 2 . . 2 . . . . 2 . . . . 2 . 2 . . 2 . . 2 . . 2 . Power 3 | . . . . . . . . . . . . . 1 . . . . . . . . . . . . 1 . . 1 . Propulsion 2 | . . . 1 . . . . . . . . . 1 . . . . . . . . . . . . . . . . . Utility 11 | . . . 1 . 1 . . 2 . . . . . . . . . 2 . 1 . . 2 . . 1 . . 1 . Weapon 2 | . . . . . 1 . . . . . . . . . . . . . . 1 . . . . . . . . . . Parts Attached 580 | 6 18 2 17 4 41 13 24 12 21 2 14 1 16 10 10 1 5 9 29 23 79 26 11 24 58 5 24 14 13 48 Power 52 | 1 1 . 3 . 2 1 3 . 1 . 1 . 3 2 1 . . 1 4 1 6 1 2 4 . 1 1 1 1 10 Engine 15 | 1 1 . 3 . 2 1 1 . . . 1 . 2 2 . . . 1 . . . . . . . . . . . . Core 3 | . . . . . . . 2 . 1 . . . . . . . . . . . . . . . . . . . . . Reactor 34 | . . . . . . . . . . . . . 1 . 1 . . . 4 1 6 1 2 4 . 1 1 1 1 10 Propulsion 87 | 2 6 . 4 . 10 . 4 . 4 . 2 . 4 4 2 . 4 1 7 3 15 . . 1 4 . 2 . 1 7 Treads . | . . . . . . . . . . . . . . . . . . . . . . . . . . . . . . . Leg 85 | 2 6 . 4 . 10 . 4 . 4 . 2 . 2 4 2 . 4 1 7 3 15 . . 1 4 . 2 . 1 7 Wheel 2 | . . . . . . . . . . . . . 2 . . . . . . . . . . . . . . . . . Hover . | . . . . . . . . . . . . . . . . . . . . . . . . . . . . . . . Flight . | . . . . . . . . . . . . . . . . . . . . . . . . . . . . . . . Utility 227 | 1 3 1 6 . 12 5 4 8 13 1 8 1 4 4 4 1 1 7 7 14 26 11 7 12 40 1 3 5 5 12 Device 122 | . 1 1 3 . 7 5 3 5 9 1 3 1 1 2 1 1 . 3 6 6 17 3 5 5 19 . 1 2 3 8 Storage 13 | 1 1 . . . 1 . . . . . . . 2 . . . . . . 1 . . . 1 4 . . 1 1 . Processor 14 | . . . . . 1 . . 2 . . 1 . . . . . . 1 . . 3 . . 1 1 1 1 . 1 1 Hackware 9 | . . . . . 1 . . . . . 1 . . . . . . 1 . 1 . 1 . . . . . 1 . 3 Protection 62 | . 1 . 3 . 2 . 1 1 4 . 3 . 1 2 3 . 1 2 1 6 6 6 2 5 10 . 1 1 . . Artifact 7 | . . . . . . . . . . . . . . . . . . . . . . 1 . . 6 . . . . . Weapon 214 | 2 8 1 4 4 17 7 13 4 3 1 3 . 5 . 3 . . . 11 5 32 14 2 7 14 3 18 8 6 19 Energy Gun 107 | 2 2 . 1 . 9 4 4 3 2 1 1 . 1 . . . . . 2 5 18 9 1 4 14 1 10 3 1 9 Energy Cannon 65 | . 2 1 3 3 6 . 5 . . . 1 . 4 . 2 . . . 7 . 13 3 . 2 . 2 3 3 3 2 Ballistic Gun 15 | . 3 . . . . . . . . . . . . . . . . . . . . . . . . . 2 2 1 7 Ballistic Cannon 1 | . . . . . . . . . . . . . . . . . . . . . . . . . . . 1 . . . Launcher 13 | . 1 . . 1 2 1 3 . 1 . . . . . . . . . 2 . . . 1 . . . 1 . . . Special Weapon 9 | . . . . . . . 1 . . . 1 . . . 1 . . . . . 1 2 . . . . 1 . 1 1 Impact Weapon 1 | . . . . . . . . . . . . . . . . . . . . . . . . 1 . . . . . . Slashing Weapon 3 | . . . . . . 2 . 1 . . . . . . . . . . . . . . . . . . . . . . Piercing Weapon . | . . . . . . . . . . . . . . . . . . . . . . . . . . . . . . . Special Melee Weapon . | . . . . . . . . . . . . . . . . . . . . . . . . . . . . . . . Unidentified Prototypes 25 | . . . 1 . 3 2 . . . . . . . . 1 . . . . . . 6 . 1 7 . 4 . . . Corrupted Parts 3 | . . . . . . . . . . . 1 . . . . . 1 . . . . . . . . . . . . 1 System Corruption 7 | . . . . . . . . . . . 3 . . . . . 2 . . . . . . . . . . . . 2 Parts Lost 100 | . 1 . 4 . 4 3 2 2 4 . 15 . . . . . . 1 7 1 22 6 1 5 2 . . 1 . 19 Power 17 | . . . . . . 1 . . 1 . 2 . . . . . . . 1 . 3 1 1 1 . . . . . 6 Propulsion 17 | . . . 2 . . . 1 . 2 . 5 . . . . . . . 1 . 3 . . . . . . . . 3 Utility 35 | . . . 1 . 1 2 1 1 1 . 6 . . . . . . 1 4 1 5 3 . 1 1 . . 1 . 5 Weapon 31 | . 1 . 1 . 3 . . 1 . . 2 . . . . . . . 1 . 11 2 . 3 1 . . . . 5 Highest Loss Streak 15 | . 1 . 1 . 2 1 1 1 2 . 15 . . . . . . 1 2 1 11 6 1 4 1 . . 1 . 12 To Critical Strikes 2 | . . . . . . . . . . . . . . . . . . . . . 1 . . . . . . . . 1 Average Slot Usage (%) 94 | . 98 100 99 100 98 99 99 99 99 100 91 45 81 100 100 100 100 99 99 96 93 96 84 84 87 91 88 86 88 86 Engine 4 | . 14 14 10 11 9 9 6 . . . . . 4 6 6 6 6 5 . . . . . . . . . . . . Reactor 4 | . . . . . . . . . . . . . 4 6 6 6 6 5 10 9 9 9 8 8 4 8 8 8 11 11 Leg 23 | . 28 28 32 33 27 27 26 23 22 23 20 . 5 24 26 26 26 23 23 21 20 21 19 19 19 20 20 20 19 18 Device 15 | . 10 14 12 11 18 17 18 22 22 23 17 14 12 17 13 16 18 14 14 19 17 13 8 8 15 20 14 11 10 12 Storage 7 | . 14 14 11 11 9 9 9 7 7 7 6 . 5 6 6 6 6 5 5 5 5 5 4 4 6 4 4 4 3 3 Processor 8 | . . . . . . . . 15 15 15 15 23 13 13 13 13 13 12 13 6 10 15 14 14 12 12 14 16 19 19 Hackware 1 | . . . . . 1 . . . . . . 7 3 . . . . 5 2 4 5 5 4 4 4 4 4 4 3 1 Protection 4 | . 2 . 9 11 5 9 8 . . . 2 . 3 1 5 3 1 5 7 6 4 3 . 1 3 4 4 3 3 3 Energy Gun 12 | . 7 . 7 . 18 26 21 21 22 23 18 . 2 . . . . . 2 20 15 18 18 16 15 13 11 11 8 11 Energy Cannon 7 | . 8 24 13 21 7 . 5 . . . . . 11 20 19 20 20 17 13 . 3 1 . 1 2 2 2 . 1 . Naked Turns . | . . . . . . . . . . . . . . . . . . . . . . . . . . . . . . . Heaviest Build 155 | 14 31 32 41 42 53 48 51 52 52 46 55 3 81 81 86 86 86 93 117 105 112 104 103 116 127 130 139 137 155 154 Greatest Support 152 | 20 26 26 39 39 45 45 55 55 55 52 57 3 20 80 88 88 88 88 116 113 120 120 120 120 150 150 152 152 152 152 Greatest Overweight (x) 4 | 1 1 1 1 1 1 1 1 . . . 2 . 4 3 1 . 1 1 1 . 1 . . . 1 . . . 1 1 Average Overweight (x) . | . . 1 . . . . . . . . . . 2 . . . . . . . . . . . . . . . . . Largest Inventory Capacity 15 | 8 15 15 15 15 15 15 15 15 15 15 15 5 15 15 15 15 15 15 15 15 15 15 15 15 15 15 15 15 15 15 Average Capacity 14 | 6 11 15 15 15 15 15 15 15 15 15 14 5 13 15 15 15 15 15 15 15 15 15 15 15 15 15 15 15 15 15 Most Carried 15 | 1 12 15 15 15 15 15 15 15 15 15 15 5 9 15 15 15 15 15 15 15 15 15 15 15 15 15 15 15 15 15 Average Carried 13 | . 7 14 14 14 14 14 14 13 14 14 13 4 5 13 14 15 15 13 14 14 13 14 14 14 13 14 14 14 14 11 Final Capacity 15 | 8 15 15 15 15 15 15 15 15 15 15 5 5 15 15 15 15 15 15 15 15 15 15 15 15 15 15 15 15 15 15 Final Carried 15 | 1 11 15 15 15 15 15 15 15 15 15 5 5 8 15 15 15 15 15 15 15 15 15 15 15 15 15 15 15 15 12 Class Distribution -------------------- 26% | Scavenger-Gunner 19% | Mutant 12% | Tank 9% | Scavenger-Skirmisher 7% | Scavenger-Mutant 7% | Hacker-Gunner 5% | Skirmisher 4% | Gunner Dominant Class ---------------- Mutant | -10/Materials Mutant | -10/Mines Mutant | -9/Materials Mutant | -9/Mines Tank | -8/Materials Tank | -8/Storage Tank | -8/Garrison Skirmisher | -7/Factory Skirmisher | -7/Lower Caves Skirmisher | -7/Lower Caves Gunner | -7/Data Miner Mutant | -6/Proximity Caves Scavenger-Gunner | -6/Factory Scavenger-Skirmisher | -6/Extension Scavenger-Gunner | -6/Cetus Scavenger-Gunner | -6/Archives Scavenger-Skirmisher | -6/Hub_04(d) Scavenger-Skirmisher | -5/Factory Scavenger-Gunner | -5/Garrison Scavenger-Skirmisher | -4/Factory Scavenger-Skirmisher | -4/Armory Scavenger-Gunner | -4/Lab Hacker-Gunner | -3/Research Hacker-Gunner | -3/Quarantine Scavenger-Gunner | -3/Section 7 Scavenger-Gunner | -2/Research Scavenger-Gunner | -2/Testing Scavenger-Gunner | -2/Garrison Scavenger-Gunner | -1/Access Scavenger-Gunner | -1/Command Resources | -11 -10 -10 -9 -9 -8 -8 -8 -7 -7 -7 -7 -6 -6 -6 -6 -6 -6 -5 -5 -4 -4 -4 -3 -3 -3 -2 -2 -2 -1 -1 ----------- Run | Scr Mat Min Mat Min Mat Sto Gar Fac Low Low Dat Pro Fac Ext Cet Arc Hub Fac Gar Fac Arm Lab Res Qua Sec Res Tes Gar Acc Com Matter Collected 6974 | 219 307 47 281 78 472 173 417 115 218 25 103 12 178 110 100 10 15 110 421 185 847 90 257 42 600 25 271 237 185 824 Remotely . | . . . . . . . . . . . . . . . . . . . . . . . . . . . . . . . Salvage Created 43577 | . 543 230 1825 77 1722 1752 1156 133 551 176 176 . 613 809 286 158 342 786 2465 1087 3113 90 1036 715 4275 758 2209 1745 1500 13249 Parts 1441 | . 37 7 113 6 90 59 68 6 16 . 5 . 29 31 22 4 18 30 93 30 121 14 43 9 188 25 85 63 52 177 Haulers Intercepted 26 | . . . 6 . 5 4 . . . . . . . . . . . 2 . 2 . . 2 . 1 1 1 . 2 . Recyclers Shooed 8 | . . . 2 . . . . . . . . . 3 1 . . . . . . . . . . . . 1 . 1 . Parts Field Recycled . | . . . . . . . . . . . . . . . . . . . . . . . . . . . . . . . Retrieved Matter . | . . . . . . . . . . . . . . . . . . . . . . . . . . . . . . . Parts Self-Destructed 19 | . . . . . . . . . 15 4 . . . . . . . . . . . . . . . . . . . . Prevented . | . . . . . . . . . . . . . . . . . . . . . . . . . . . . . . . Kills | -11 -10 -10 -9 -9 -8 -8 -8 -7 -7 -7 -7 -6 -6 -6 -6 -6 -6 -5 -5 -4 -4 -4 -3 -3 -3 -2 -2 -2 -1 -1 ------- Run | Scr Mat Min Mat Min Mat Sto Gar Fac Low Low Dat Pro Fac Ext Cet Arc Hub Fac Gar Fac Arm Lab Res Qua Sec Res Tes Gar Acc Com Combat Hostiles Destroyed 575 | . 13 2 28 6 30 23 30 3 10 . 2 . 4 12 4 2 5 5 41 13 51 1 19 7 51 11 23 28 12 139 Melee 1 | . . . . . . . . . . . . . . . . . . . . . 1 . . . . . . . . . Guns 406 | . 9 . 9 . 19 21 17 3 7 . 2 . . . . . . . 7 12 39 1 14 4 36 9 19 27 12 139 Cannons 93 | . 1 2 19 3 5 . 4 . . . . . 3 9 2 1 3 5 21 . 5 . . 1 7 . 2 . . . AOE 35 | . 3 . . 3 5 . 9 . 2 . . . . . . . . . 8 . . . 5 . . . . . . . Classes Destroyed 27 | . 5 . 4 . 1 1 1 . 2 . . . 1 1 . . 2 . 1 . 1 . . 1 4 . 1 . . 1 Worker 20 | . 1 . 1 . . 1 . . . . . . 4 . . . 2 . . . . . 2 . . . . . . 9 Builder 7 | . . . . . . . . . . . . . 3 . . . 1 . . 1 . . . . 2 . . . . . Tunneler 1 | . . . . . . 1 . . . . . . . . . . . . . . . . . . . . . . . . Hauler 26 | . . . 6 . 5 4 . . . . . . . . . . . 2 . 2 . . 2 . 1 1 1 . 2 . Recycler 25 | . 2 2 3 . 2 3 . . . . . . 2 . . . . 2 . 1 . . . . 1 . 2 . 4 1 Carrier 9 | . . . . . . . . . . . . . . . . . . . . . . . . . . . . . . 9 Minesweeper 2 | . . . . . . . . . 2 . . . . . . . . . . . . . . . . . . . . . Mechanic 8 | . . . . . . . . . . . . . . . . . . . . . . . . . 1 . . . . 7 Operator 7 | . . . 1 . 3 1 . . . . . . . . . . . 1 . . . . . . . . . . . 1 Watcher 28 | . 1 . 4 . 4 1 . . . . . . 1 1 . . . . . 1 3 . 1 . 4 2 1 . 1 3 Swarmer 115 | . 6 . 3 6 9 3 7 1 4 . . . . . 1 . . . . 4 13 . 15 . 9 5 8 12 5 4 Saboteur 8 | . . . . . . . . . . . . . . . . . . . . . 1 . . . . . . . . 7 Grunt 220 | . 7 2 15 . 12 16 16 . 2 . . . 3 5 . . 1 1 22 3 13 . . . 8 1 8 12 2 71 Brawler 14 | . . . 2 . . . 1 1 . . . . . . . . . . 2 . . . . . . . . 1 . 7 Duelist 17 | . . . . . . . . . 2 . . . . . . . . . . . 4 . . . 2 . . . . 9 Protector 7 | . . . . . . . . . . . . . . . . . . . 2 . . . . . . . . . . 5 Researcher 4 | . . . . . . . . . . . . . . . . . . . . . . . . . 1 . 3 . . . Sentry 45 | . . . 8 . 7 4 2 . 2 . . . . 5 . 2 . . 3 2 4 . 1 . 4 . . . . 1 Specialist 6 | . . . . . . . . . . . . . . . . . 1 . 2 . 3 . . . . . . . . . Hunter 33 | . . . . . 2 . . 1 . . . . . . . . 2 2 4 2 1 . . . 4 . 5 . 3 7 Programmer 57 | . . . . . . . 4 . . . . . 1 . . . . 2 5 2 6 . 2 2 10 5 . 1 2 15 Heavy 3 | . . . . . . . . . . . . . . . . . 1 . . . 1 . . . 1 . . . . . Q-Series 1 | . . . . . . . . . . . . . . . . . . . . . . . . . . . 1 . . . Behemoth 8 | . . . . . . . . . . . . . . 2 . . . . 1 . 1 . 1 . 1 . . 2 . . Cetus Guard 3 | . . . . . . . . . . . . . . . 3 . . . . . . . . . . . . . . . S7 Guard 2 | . . . . . . . . . . . . . . . . . . . . . . . . . 2 . . . . . Enhanced Grunt 2 | . . . . . . . . . . . 2 . . . . . . . . . . . . . . . . . . . Tracker 5 | . . . . . . . . . . . . . . . . . . . . . 2 . . 2 1 . . . . . Combat Programmer 5 | . . . . . . . . . . . . . . . . . . . . . 2 . . 2 1 . . . . . Investigator 1 | . . . . . . . . . . . . . . . . . . . . . . . . . . . . . . 1 Striker 10 | . . . . . . . . . . . . . . . . . . . . . . . . . 4 . . . . 6 Executioner 11 | . . . . . . . . . . . . . . . . . . . . . . . . . 4 . . . . 7 Fortress 1 | . . . . . . . . . . . . . . . . . . . . . . . . 1 . . . . . . Protovariant P 1 | . . . . . . . . . . . . . . . . . . . . . . . . . . . 1 . . . Best Kill Streak 38 | . 4 2 5 3 4 9 4 1 5 . 1 . 3 2 2 1 5 9 5 6 8 1 9 4 7 6 9 11 6 38 Combat Bots Only 28 | . 4 2 5 3 3 5 4 1 5 . 1 . 3 2 2 1 4 4 5 4 7 1 9 4 6 5 7 11 5 28 Max Kills in Single Turn 6 | . 2 1 2 2 3 2 3 1 2 . 1 . 1 1 1 1 2 1 4 2 2 1 4 1 2 1 2 3 2 6 Gunslinging 2 | . . . . . . 1 1 . 1 . . . . . . . . . . . 1 . 2 . 1 . 1 1 . 2 Exploded 4 | . 2 . . 2 3 . 3 . 2 . . . . . . . . . 4 . . . 3 . . . . . . . Melee 1 | . . . . . . . . . . . . . . . . . . . . . 1 . . . . . . . . . Uniques/NPCs Destroyed 2 | . . . . . . . . . . . . . . . 1 . . . . . . 1 . . . . . . . . A7 (-6/Cetus) A5 (-4/Lab) Combat | -11 -10 -10 -9 -9 -8 -8 -8 -7 -7 -7 -7 -6 -6 -6 -6 -6 -6 -5 -5 -4 -4 -4 -3 -3 -3 -2 -2 -2 -1 -1 -------- Run | Scr Mat Min Mat Min Mat Sto Gar Fac Low Low Dat Pro Fac Ext Cet Arc Hub Fac Gar Fac Arm Lab Res Qua Sec Res Tes Gar Acc Com Damage Taken 31891 | . 499 65 839 203 1391 676 894 243 494 . 1766 18 183 470 80 69 459 246 2373 852 5921 991 622 1982 2961 280 475 744 405 5690 Core 4077 | . 83 . 114 41 173 141 85 52 54 . 454 18 19 83 . 22 20 39 238 76 663 291 20 183 746 10 23 82 17 330 Absorbed by Shields 4925 | . . . . . . . 132 . . . . . . 96 . . . . 162 . . . . . 2370 290 499 350 168 858 Redirected to Shielding 9 | . . . . . . . . . . . . . . . . . . . . . 9 . . . . . . . . . Regen/Repaired (Parts) 5752 | . . . 131 . 45 . . . . . . . . . 112 10 25 164 372 257 112 144 14 89 1846 91 192 293 181 1674 Core Remaining (%) 58 | 100 . 66 . 61 . . 27 . . . . 17 . . . . 83 . 72 . . 35 . . 9 . . 92 . 78 Volleys Fired 1555 | . 46 11 91 11 89 61 75 12 22 4 25 . 34 24 27 3 10 19 98 28 160 26 28 32 252 29 68 64 24 182 Largest 4 | . 2 2 2 2 3 3 3 3 3 3 3 . 3 3 3 3 3 3 3 4 4 4 4 4 4 4 4 4 4 4 Hottest 400 | . 80 120 120 120 204 177 190 217 205 231 231 . 270 215 215 215 215 215 346 290 342 308 260 306 400 307 307 288 358 400 Shots Fired 4224 | . 91 22 180 20 257 181 162 34 62 12 44 . 62 68 50 9 28 53 253 112 444 87 100 115 735 92 187 160 81 523 Gun 3066 | . 80 . 65 . 167 181 110 34 60 12 33 . 12 . . . . . 56 112 355 71 98 107 577 71 145 140 71 509 Cannon 1082 | . 10 22 115 18 87 . 37 . . . 10 . 50 68 32 9 28 53 193 . 76 13 . 8 158 21 39 20 10 5 Launcher 25 | . 1 . . 2 3 . 11 . 2 . . . . . . . . . 4 . . . 2 . . . . . . . Special 51 | . . . . . . . 4 . . . 1 . . . 18 . . . . . 13 3 . . . . 3 . . 9 Kinetic 191 | . 37 . . . . . . . . . . . . . . . . . . . . . . . . . 21 27 21 85 Thermal 3324 | . 28 22 180 18 254 181 151 34 60 12 43 . 62 68 50 9 28 53 249 112 431 87 98 115 539 92 143 133 60 12 Explosive 25 | . 1 . . 2 3 . 11 . 2 . . . . . . . . . 4 . . . 2 . . . . . . . Electromagnetic 25 | . 25 . . . . . . . . . . . . . . . . . . . . . . . . . . . . . Slashing 633 | . . . . . . . . . . . . . . . . . . . . . . . . . 196 . 20 . . 417 Robot Hit Streak 75 | . 17 6 13 4 18 21 15 3 12 12 23 . 19 33 42 4 11 20 30 21 29 13 23 10 75 25 24 24 21 31 Robot Miss Streak 5 | . 3 2 5 3 3 4 3 4 2 . 1 . 2 2 1 1 1 3 4 2 4 2 1 4 2 2 5 3 4 4 Penetration Max 4 | . . . . . . . . . . . . . . . . . . . . . . . . . 1 . 1 1 1 4 Secondary Targets 70 | . . . . . . 4 3 . 4 . . . . . . . . . . . 6 . 4 2 7 3 2 5 . 30 Max Gunslinging Chain 2 | . . . . . . 2 1 . 1 . . . . . . . . . . . 1 . 2 1 2 1 1 1 . 2 Shots Hit Robots 2689 | . 55 14 114 7 155 131 86 17 46 9 29 . 34 50 36 5 18 32 127 81 271 57 48 45 500 50 115 99 58 400 Core Hits 1486 | . 23 5 55 7 67 55 57 8 18 3 13 . 20 17 16 2 9 12 106 35 114 13 38 18 146 28 67 63 36 435 Critical Kills 141 | . . . . . 1 . . . . . . . 1 1 1 1 1 2 4 . 1 . . . 2 . 12 16 16 82 Critical Parts Destroyed 130 | . . . . . . . . . . . . . . . . . . . . . . . . . . . 12 16 10 92 Critical Strikes 397 | . 1 . 5 . 7 10 8 . 3 1 . . 1 1 2 1 1 2 5 6 10 . . . 8 5 33 44 28 215 Burn 81 | . . . 5 . 6 10 8 . 3 1 . . . . . . . . 1 6 9 . . . 5 5 8 12 2 . Meltdown 16 | . . . . . 1 . . . . . . . 1 1 1 1 1 2 4 . 1 . . . 2 . 1 . . . Destroy 259 | . . . . . . . . . . . . . . . . . . . . . . . . . . . 23 32 26 178 Corrupt 1 | . 1 . . . . . . . . . . . . . . . . . . . . . . . . . . . . . Sever 40 | . . . . . . . . . . . . . . . 1 . . . . . . . . . 1 . 1 . . 37 Melee Attacks 9 | . . . . . . 4 . 2 . . . . . . . . . . . . . . . 3 . . . . . . Kinetic 3 | . . . . . . . . . . . . . . . . . . . . . . . . 3 . . . . . . Impact . | . . . . . . . . . . . . . . . . . . . . . . . . . . . . . . . Slashing 6 | . . . . . . 4 . 2 . . . . . . . . . . . . . . . . . . . . . . Piercing . | . . . . . . . . . . . . . . . . . . . . . . . . . . . . . . . Sneak Attacks . | . . . . . . . . . . . . . . . . . . . . . . . . . . . . . . . Combat Hostiles . | . . . . . . . . . . . . . . . . . . . . . . . . . . . . . . . Follow-up Attacks . | . . . . . . . . . . . . . . . . . . . . . . . . . . . . . . . Damage Inflicted 85124 | . 914 249 2241 319 3551 2781 2699 350 1292 221 443 . 1102 1855 1065 171 951 1178 6627 2463 8173 1334 2225 1629 15232 1410 2757 2414 1333 18145 Guns 61833 | . 678 . 738 . 2235 2740 1361 350 939 221 415 . 301 . . . . . 1083 2372 6544 1051 1732 1361 12899 1176 2307 2152 1180 17998 Cannons 18508 | . 36 248 1369 124 959 . 394 . . . 28 . 801 1855 846 171 673 1178 4293 . 1622 259 . 175 2333 234 450 262 153 45 Explosions 3864 | . 200 . . 195 297 . 893 . 353 . . . . . . . 250 . 1229 . . . 447 . . . . . . . Melee 93 | . . . . . . . . . . . . . . . . . . . . . . . . 93 . . . . . . Ramming 536 | . . 1 134 . 60 41 4 . . . . . . . . . 28 . 22 91 7 . 46 . . . . . . 102 Kinetic 3989 | . 358 . . . . . . . . . . . . . . . . . . . . . . 93 . . 241 294 255 2748 Thermal 55833 | . 233 248 2107 124 3194 2740 1802 350 939 221 443 . 1102 1855 1065 171 673 1178 5376 2372 8166 1334 1732 1536 10070 1410 1983 2120 1078 211 Explosive 3548 | . 134 . . 195 297 . 893 . 353 . . . . . . . . . 1229 . . . 447 . . . . . . . Electromagnetic 439 | . 189 . . . . . . . . . . . . . . . 250 . . . . . . . . . . . . . Impact . | . . . . . . . . . . . . . . . . . . . . . . . . . . . . . . . Slashing 20779 | . . . . . . . . . . . . . . . . . . . . . . . . . 5162 . 533 . . 15084 Piercing . | . . . . . . . . . . . . . . . . . . . . . . . . . . . . . . . Highest Corruption 27 | . . . 10 10 6 6 7 1 1 1 4 4 . . . . 2 . 14 . 15 27 2 13 13 . . . 1 6 Average Corruption 7 | . . . 7 10 5 6 6 1 1 1 1 4 . . . . 2 . 6 . 9 24 2 6 13 . . . 1 2 Corruption Purged . | . . . . . . . . . . . . . . . . . . . . . . . . . . . . . . . Corruption Blocked . | . . . . . . . . . . . . . . . . . . . . . . . . . . . . . . . Effects 503 | . . . 84 12 39 34 49 2 3 5 4 3 . . . . . . 46 . 28 20 7 26 113 . . . 4 24 Message Errors 119 | . . . 23 4 10 7 9 . 2 1 . . . . . . . . 11 . 7 1 3 7 30 . . . 1 3 Matter Fused 110 | . . . 19 2 8 5 10 1 . 1 3 . . . . . . . 8 . 4 8 2 5 26 . . . . 8 Heat Flow Errors 56 | . . . 12 2 3 3 5 . . . . 1 . . . . . . 5 . 3 2 1 1 14 . . . . 4 Energy Discharges 58 | . . . 6 3 5 5 7 . . 1 1 . . . . . . . 9 . 2 1 1 4 10 . . . 1 2 Parts Rejected 8 | . . . 1 . 1 . 1 1 . . . . . . . . . . . . 2 . . . 2 . . . . . Data Loss (minor) 56 | . . . 10 . 5 6 6 . . 2 . . . . . . . . 5 . 2 3 . 4 9 . . . 1 3 Data Loss (major) 20 | . . . 2 . 2 3 2 . . . . 2 . . . . . . 1 . 1 1 . 1 1 . . . 1 3 Misfires 24 | . . . 4 . 3 2 3 . . . . . . . . . . . 3 . 2 1 . . 6 . . . . . Alerts 11 | . . . 2 1 . . 2 . 1 . . . . . . . . . 2 . 1 1 . . . . . . . 1 Misdirections 3 | . . . 1 . . . . . . . . . . . . . . . 1 . . . . . 1 . . . . . Weapon Failures 38 | . . . 4 . 2 3 4 . . . . . . . . . . . 1 . 4 2 . 4 14 . . . . . Overload Shots 8 | . . . . . . . . . . . . . 3 2 . . . . . . . 2 . . . . 1 . . . Overflow Damage 621 | . 15 5 . 8 22 . 51 . 22 . . . 50 76 . . 22 13 134 37 67 . 22 . 35 4 . . 30 8 Projectiles 467 | . . 5 . . 7 . 26 . . . . . 50 76 . . 20 13 134 . 67 . . . 35 4 . . 30 . Explosions 109 | . 15 . . 8 15 . 25 . 22 . . . . . . . 2 . . . . . 22 . . . . . . . Melee 45 | . . . . . . . . . . . . . . . . . . . . 37 . . . . . . . . . 8 Knockbacks 1 | . . . . . . . . . . . . . . . . . . . . 1 . . . . . . . . . . Impact 1 | . . . . . . . . . . . . . . . . . . . . 1 . . . . . . . . . . Kinetic . | . . . . . . . . . . . . . . . . . . . . . . . . . . . . . . . Secondary . | . . . . . . . . . . . . . . . . . . . . . . . . . . . . . . . Self-Inflicted Damage 359 | . 28 . . . . . 32 . . . . . . . . . 161 . 95 . . . 43 . . . . . . . Shots 13 | . 1 . . . . . 2 . . . . . . . . . 2 . 5 . . . 3 . . . . . . . Rammed . | . . . . . . . . . . . . . . . . . . . . . . . . . . . . . . . Targets Rammed 64 | . . 1 19 . 14 8 2 . . . . . . . . . 4 . 2 2 3 . 2 . . . . . . 7 Kicked 64 | . . 1 19 . 14 8 2 . . . . . . . . . 4 . 2 2 3 . 2 . . . . . . 7 Crushed . | . . . . . . . . . . . . . . . . . . . . . . . . . . . . . . . Highest Temperature 397 | . 152 126 249 164 303 208 206 66 10 70 76 250 295 9 . . 12 3 306 90 270 244 40 122 397 175 175 175 172 172 Average Temperature 91 | . 59 54 70 27 53 26 56 26 4 52 37 131 57 5 . . 7 3 92 23 83 75 40 46 127 129 119 111 106 124 Received Heat Transfer 4130 | . 222 36 357 . 522 387 332 . 87 . . 27 81 123 . . 78 18 618 117 544 . . 27 133 4 8 142 10 257 Effects 2 | . . . . . 2 . . . . . . . . . . . . . . . . . . . . . . . . . Interference 2 | . . . . . 2 . . . . . . . . . . . . . . . . . . . . . . . . . Siege Activations . | . . . . . . . . . . . . . . . . . . . . . . . . . . . . . . . Robots Corrupted . | . . . . . . . . . . . . . . . . . . . . . . . . . . . . . . . Combat Hostiles . | . . . . . . . . . . . . . . . . . . . . . . . . . . . . . . . Parts Fried 4 | . . . . . . . . . . . 2 . . . . . . . . . . . . . . . . . . 2 Impact Corruptions 2 | . . . . . . . . . . . . . . . . . . . . 1 . . . . . . . . . 1 Robots Melted 45 | . . . . . 1 2 . . 2 . . . 1 3 2 1 2 3 5 2 6 . 1 1 8 2 2 1 . . Combat Hostiles 39 | . . . . . 1 2 . . 1 . . . 1 3 2 1 2 . 5 1 6 . . 1 8 2 2 1 . . Parts Melted 290 | . 1 . 7 . 12 20 13 . 11 . 1 . 3 4 . 2 5 8 16 21 40 . 11 9 45 12 26 20 3 . Heat Transferred 86823 | . 449 518 4736 259 6512 5624 3919 629 1887 444 1036 . 1725 2600 1526 250 950 1600 5114 4516 11381 1833 1887 1606 11604 2812 4562 4725 1955 164 Parts Sabotaged 8 | . . . . . . . . . . . . . . . . . . . . . 3 . . . . . . . . 5 Parts Stolen . | . . . . . . . . . . . . . . . . . . . . . . . . . . . . . . . Parts Stripped . | . . . . . . . . . . . . . . . . . . . . . . . . . . . . . . . Power Chain Reactions 2 | . 1 . . . . . . . . . . . . . . . 1 . . . . . . . . . . . . . Missiles Intercepted . | . . . . . . . . . . . . . . . . . . . . . . . . . . . . . . . Alert | -11 -10 -10 -9 -9 -8 -8 -8 -7 -7 -7 -7 -6 -6 -6 -6 -6 -6 -5 -5 -4 -4 -4 -3 -3 -3 -2 -2 -2 -1 -1 ------- Run | Scr Mat Min Mat Min Mat Sto Gar Fac Low Low Dat Pro Fac Ext Cet Arc Hub Fac Gar Fac Arm Lab Res Qua Sec Res Tes Gar Acc Com Peak Influence 4038 | . 375 116 506 378 468 1051 1708 963 . . . . 197 415 1028 556 1097 745 1862 1213 1397 . 512 296 946 736 1050 1426 1221 4038 Initial 977 | . . 106 . 178 146 182 683 896 . . . . 37 24 232 351 194 536 387 977 527 . . 153 87 531 180 787 842 694 Average 667 | . 218 51 303 291 218 634 1262 597 . . . . 84 225 548 480 380 576 1101 1088 1059 . 273 205 429 483 538 1248 1021 2154 Maximum Alert Level 5 | . 1 . 2 1 2 3 5 3 . . . . . 2 3 2 3 3 5 4 4 . 2 1 3 3 3 4 4 5 Low Security (%) 20 | 100 23 100 32 2 46 2 . . . . . . 100 41 . . 4 . . . . . 17 51 18 15 3 . . . Level 1 22 | . 76 . 19 97 42 9 . 25 . . . . . 50 44 14 59 . 8 . . . 62 48 28 20 18 . . . Level 2 21 | . . . 47 . 11 42 3 43 . . . . . 7 41 85 23 96 25 . 8 . 19 . 43 44 60 . . 1 Level 3 15 | . . . . . . 45 34 30 . . . . . . 13 . 12 3 15 61 42 . . . 9 20 17 20 76 18 Level 4 11 | . . . . . . . 32 . . . . . . . . . . . 20 38 48 . . . . . . 79 23 22 Level 5 4 | . . . . . . . 28 . . . . . . . . . . . 28 . . . . . . . . . . 3 High Security 3 | . . . . . . . . . . . . . . . . . . . . . . . . . . . . . . 53 Max Security . | . . . . . . . . . . . . . . . . . . . . . . . . . . . . . . . Squads Dispatched 126 | . 3 1 4 . 4 8 . 2 . . . . 2 2 . . 6 3 . 6 10 . 1 7 13 3 8 . 3 40 Investigation 16 | . 2 1 2 . . 1 . 1 . . . . 1 2 . . . . . 1 1 . 1 1 1 1 . . . . Extermination 20 | . . . . . . . . . . . . . 1 . . . 1 1 . 2 2 . . 1 6 1 1 . 1 3 Reinforcement 36 | . 1 . 2 . 4 5 . 1 . . . . . . . . 3 2 . 1 3 . . 1 3 1 7 . 1 1 Assault 42 | . . . . . . . . . . . . . . . . . 1 . . 2 1 . . . 1 . . . 1 36 Garrison 3 | . . . . . . 2 . . . . . . . . . . 1 . . . . . . . . . . . . . Intercept 9 | . . . . . . . . . . . . . . . . . . . . . 3 . . 4 2 . . . . . Searches Triggered . | . . . . . . . . . . . . . . . . . . . . . . . . . . . . . . . Construction Impeded 5 | . . . . . . 3 . . . . . . . . . . . . . 1 . . . . . . 1 . . . Haulers Reinforced 2 | . . . . . . . . . . . . . . . . . . 1 . . . . . . 1 . . . . . Active Scanning Responses . | . . . . . . . . . . . . . . . . . . . . . . . . . . . . . . . Cargo Convoy Interrupts . | . . . . . . . . . . . . . . . . . . . . . . . . . . . . . . . Stealth | -11 -10 -10 -9 -9 -8 -8 -8 -7 -7 -7 -7 -6 -6 -6 -6 -6 -6 -5 -5 -4 -4 -4 -3 -3 -3 -2 -2 -2 -1 -1 --------- Run | Scr Mat Min Mat Min Mat Sto Gar Fac Low Low Dat Pro Fac Ext Cet Arc Hub Fac Gar Fac Arm Lab Res Qua Sec Res Tes Gar Acc Com Distress Signals 32 | . 1 . 3 . 3 6 . . . . . . . 1 2 . 2 . . 1 2 . 4 . 1 2 3 . . 1 Communications Jammed . | . . . . . . . . . . . . . . . . . . . . . . . . . . . . . . . Distress Signals . | . . . . . . . . . . . . . . . . . . . . . . . . . . . . . . . Times Spotted 864 | . 26 2 50 7 47 48 30 8 10 . 4 4 5 21 21 3 21 6 43 23 71 1 32 12 71 15 37 28 15 203 Peak Tracking Total 20 | . 4 2 7 4 4 5 7 3 5 . 2 4 3 3 5 2 10 3 8 11 9 1 10 3 6 6 8 6 7 20 Tactical Retreats 43 | . 5 . 2 . 1 3 2 . . . . 1 . . 1 . . 1 4 1 6 . 2 . 3 . 2 1 . 8 Traps | -11 -10 -10 -9 -9 -8 -8 -8 -7 -7 -7 -7 -6 -6 -6 -6 -6 -6 -5 -5 -4 -4 -4 -3 -3 -3 -2 -2 -2 -1 -1 ------- Run | Scr Mat Min Mat Min Mat Sto Gar Fac Low Low Dat Pro Fac Ext Cet Arc Hub Fac Gar Fac Arm Lab Res Qua Sec Res Tes Gar Acc Com Traps Triggered 32 | . 1 . 2 . 3 1 4 2 . . . . . 3 . . . 1 5 1 . . 1 1 . 1 1 1 . 4 Indirectly . | . . . . . . . . . . . . . . . . . . . . . . . . . . . . . . . Trap Hack Attempts . | . . . . . . . . . . . . . . . . . . . . . . . . . . . . . . . Triggered . | . . . . . . . . . . . . . . . . . . . . . . . . . . . . . . . Disarmed . | . . . . . . . . . . . . . . . . . . . . . . . . . . . . . . . Reprogrammed . | . . . . . . . . . . . . . . . . . . . . . . . . . . . . . . . Reused 1 | . . . . . . . . . . . 1 . . . . . . . . . . . . . . . . . . . Traps Extracted . | . . . . . . . . . . . . . . . . . . . . . . . . . . . . . . . Installed 4 | . . . . . . . . . . . 4 . . . . . . . . . . . . . . . . . . . Triggered 2 | . . . . . . . . . . . . 1 . . . . . . . . . . . . . . . . . 1 Most Traps Carried 6 | . . . . . . . . . 6 5 5 . . . . . . . . . . . . . . . . . . . Machines | -11 -10 -10 -9 -9 -8 -8 -8 -7 -7 -7 -7 -6 -6 -6 -6 -6 -6 -5 -5 -4 -4 -4 -3 -3 -3 -2 -2 -2 -1 -1 ---------- Run | Scr Mat Min Mat Min Mat Sto Gar Fac Low Low Dat Pro Fac Ext Cet Arc Hub Fac Gar Fac Arm Lab Res Qua Sec Res Tes Gar Acc Com Machines Disabled 79 | . . . 2 . 6 3 2 . . . . . 1 5 4 3 6 . 3 . 4 3 1 6 20 . 6 2 . 2 Max in Single Turn 6 | . . . 1 . 1 1 1 . . . . . 1 1 1 1 6 . 2 . 1 1 1 1 1 . 1 1 . 1 Garrison Access 6 | . . . . . 1 . . 2 . . . . 1 . . . 1 . . . . . 1 . . . . . . . Garrison Relay 2 | . . . . . . . . . . . . . . . . . . . 1 . . . . . . . . 1 . . Phase Generator 1 | . . . . . . . . . . . . . . . . . . . 1 . . . . . . . . . . . Network Hub 1 | . . . . . . . . . . . . . . . . . 1 . . . . . . . . . . . . . Machines Sabotaged . | . . . . . . . . . . . . . . . . . . . . . . . . . . . . . . . Garrisons Compromised . | . . . . . . . . . . . . . . . . . . . . . . . . . . . . . . . Overloaded Fab Kills . | . . . . . . . . . . . . . . . . . . . . . . . . . . . . . . . Hacking | -11 -10 -10 -9 -9 -8 -8 -8 -7 -7 -7 -7 -6 -6 -6 -6 -6 -6 -5 -5 -4 -4 -4 -3 -3 -3 -2 -2 -2 -1 -1 --------- Run | Scr Mat Min Mat Min Mat Sto Gar Fac Low Low Dat Pro Fac Ext Cet Arc Hub Fac Gar Fac Arm Lab Res Qua Sec Res Tes Gar Acc Com Machines Accessed 108 | . 7 1 8 . 11 8 2 7 . . 4 . 3 10 . . 3 2 2 2 5 1 4 4 12 2 2 3 3 2 Terminals 81 | . 6 . 7 . 7 6 2 5 . . . . 1 10 . . 3 1 2 . 4 . 2 3 11 2 1 3 3 2 Fabricators 3 | . . . . . . . . . . . . . 1 . . . . . . 1 1 . . . . . . . . . Repair Stations 4 | . . . 1 . 1 . . . . . . . . . . . . . . 1 . . . 1 . . . . . . Recycling Units 3 | . 1 . . . 1 1 . . . . . . . . . . . . . . . . . . . . . . . . Scanalyzers 3 | . . . . . 1 . . . . . . . . . . . . . . . . . 1 . 1 . . . . . Garrison Access 8 | . . . . . 1 1 . 2 . . . . 1 . . . . 1 . . . . 1 . . . 1 . . . Total Hacks 325 | . 16 1 31 . 37 16 4 22 . . 28 . 5 20 . . 6 7 2 7 20 4 15 11 43 13 3 7 4 3 Successful 210 | . 9 1 22 . 23 9 2 15 . . 28 . 4 5 . . 5 4 2 6 10 4 9 4 27 7 3 6 3 2 Failed 115 | . 7 . 9 . 14 7 2 7 . . . . 1 15 . . 1 3 . 1 10 . 6 7 16 6 . 1 1 1 Catastrophic 16 | . . . 1 . . 2 . 2 . . . . . 2 . . . . . . 4 . . 1 2 1 . . . 1 Database Lockouts . | . . . . . . . . . . . . . . . . . . . . . . . . . . . . . . . Manual 156 | . 13 . 20 . 23 3 . 10 . . . . 2 6 1 . 6 3 . . 11 . 9 7 25 9 2 3 . 3 Terminals 240 | . 15 . 25 . 26 13 4 20 . . . . 2 20 . . 6 6 2 . 15 . 11 9 37 13 2 7 4 3 Fabricators 9 | . . . . . . . . . . . . . 2 . . . . . . 2 5 . . . . . . . . . Repair Stations 17 | . . . 6 . 4 . . . . . . . . . . . . . . 5 . . . 2 . . . . . . Recycling Units 5 | . 1 . . . 3 1 . . . . . . . . . . . . . . . . . . . . . . . . Scanalyzers 12 | . . . . . 3 . . . . . . . . . . . . . . . . . 3 . 6 . . . . . Garrison Access 9 | . . . . . 1 2 . 2 . . . . 1 . . . . 1 . . . . 1 . . . 1 . . . Terminal Hacks 120 | . 4 1 10 . 9 5 2 8 . . 28 . . 4 . . 2 2 2 . 6 4 4 . 15 6 1 4 3 . Record 14 | . . . . . . . . . . . 11 . . . . . . . . . . 3 . . . . . . . . Part Schematic 10 | . . . . . . 1 . . . . 9 . . . . . . . . . . . . . . . . . . . Robot Schematic 5 | . . . . . . . . . . . 5 . . . . . . . . . . . . . . . . . . . Robot Analysis 3 | . 1 . 1 . 1 . . . . . . . . . . . . . . . . . . . . . . . . . Prototype ID Bank 5 | . 2 . . . . . . . . . 3 . . . . . . . . . . . . . . . . . . . Open Door 15 | . . 1 . . . 3 . . . . . . . 4 . . . . . . . . . . 4 . . . 3 . Level Access Points 2 | . . . . . . . . . . . . . . . . . 1 . . . . . . . 1 . . . . . Branch Access Points 7 | . . . 1 . 1 . . 2 . . . . . . . . . 1 . . . . 1 . . 1 . . . . Emergency Access Points 4 | . . . . . . . 1 . . . . . . . . . . . 1 . . . 1 . . . . 1 . . Terminal Index 4 | . . . 1 . 2 . . 1 . . . . . . . . . . . . . . . . . . . . . . Scanalyzer Index 1 | . . . . . 1 . . . . . . . . . . . . . . . . . . . . . . . . . Alert Level 6 | . . . 2 . 1 . . . . . . . . . . . . 1 . . 1 . . . . 1 . . . . Unreport Threat 18 | . . . . . 2 . . 4 . . . . . . . . . . . . 3 . 1 . 3 4 . 1 . . Transport Status 1 | . . . 1 . . . . . . . . . . . . . . . . . . . . . . . . . . . Recall Reinforcements 1 | . . . . . . . . . . . . . . . . . . . . . . . . . . . 1 . . . Hauler Manifests 8 | . 1 . 1 . 1 1 . . . . . . . . . . 1 . . . 1 . 1 . 1 . . . . . Zone Layout 11 | . . . 3 . . . . 1 . . . . . . . . . . . . 1 . . . 6 . . . . . Garrison Registry 1 | . . . . . . . . . . . . . . . . . . . . . . . . . . . . 1 . . Patrol Navigation 3 | . . . . . . . 1 . . . . . . . . . . . 1 . . . . . . . . 1 . . Release Object 1 | . . . . . . . . . . . . . . . . . . . . . . 1 . . . . . . . . Fabricator Hacks 5 | . . . . . . . . . . . . . 2 . . . . . . 2 1 . . . . . . . . . Load Schematic 3 | . . . . . . . . . . . . . 1 . . . . . . 1 1 . . . . . . . . . Build 2 | . . . . . . . . . . . . . 1 . . . . . . 1 . . . . . . . . . . Repair Station Hacks 15 | . . . 6 . 3 . . . . . . . . . . . . . . 4 . . . 2 . . . . . . Scan Component 8 | . . . 3 . 2 . . . . . . . . . . . . . . 2 . . . 1 . . . . . . Repair 7 | . . . 3 . 1 . . . . . . . . . . . . . . 2 . . . 1 . . . . . . Recycling Unit Hacks 2 | . . . . . 1 1 . . . . . . . . . . . . . . . . . . . . . . . . Retrieve Components 2 | . . . . . 1 1 . . . . . . . . . . . . . . . . . . . . . . . . Scanalyzer 9 | . . . . . 3 . . . . . . . . . . . . . . . . . 2 . 4 . . . . . Insert Component 7 | . . . . . 1 . . . . . . . . . . . . . . . . . 2 . 4 . . . . . Analyze 2 | . . . . . 2 . . . . . . . . . . . . . . . . . . . . . . . . . Garrison Access Hacks 8 | . . . . . 1 1 . 2 . . . . 1 . . . . 1 . . . . 1 . . . 1 . . . Unlock Access 3 | . . . . . . 1 . . . . . . . . . . . 1 . . . . . . . . 1 . . . Seal Access 5 | . . . . . 1 . . 2 . . . . 1 . . . . . . . . . 1 . . . . . . . Unauthorized Hacks 51 | . 5 . 6 . 6 2 . 5 . . . . 1 1 . . 3 1 . . 3 . 2 2 8 1 1 2 . 2 Terminals 50 | . 4 . 6 . 6 2 . 5 . . . . 1 1 . . 3 1 . . 3 . 2 2 8 1 1 2 . 2 Track 4 | . 1 . . . . . . . . . . . . . . . . . . . . . . . 2 . . 1 . . Assimilate 2 | . . . . . . . . . . . . . . . . . . . . . 1 . . . 1 . . . . . Botnet 44 | . 3 . 6 . 6 2 . 5 . . . . 1 1 . . 3 1 . . 2 . 2 2 5 1 1 1 . 2 Fabricators . | . . . . . . . . . . . . . . . . . . . . . . . . . . . . . . . Repair Stations . | . . . . . . . . . . . . . . . . . . . . . . . . . . . . . . . Recycling Units 1 | . 1 . . . . . . . . . . . . . . . . . . . . . . . . . . . . . Tunnel 1 | . 1 . . . . . . . . . . . . . . . . . . . . . . . . . . . . . Scanalyzers . | . . . . . . . . . . . . . . . . . . . . . . . . . . . . . . . Garrison Access . | . . . . . . . . . . . . . . . . . . . . . . . . . . . . . . . Data Cores Recovered 1 | . . . 1 . . . . . . . . . . . . . . . . . . . . . . . . . . . Used . | . . . . . . . . . . . . . . . . . . . . . . . . . . . . . . . Hacking Detections 67 | . 6 . 7 . 9 5 2 4 . . . . 1 8 1 . 1 1 . 1 4 . 3 4 4 2 1 2 . 1 Full Trace Events 11 | . . . 1 . . 1 1 1 . . . . 1 2 . . . . . 1 1 . . . 1 1 . . . . Feedback Events . | . . . . . . . . . . . . . . . . . . . . . . . . . . . . . . . Feedback Blocked . | . . . . . . . . . . . . . . . . . . . . . . . . . . . . . . . Robot Schematics Acquired 7 | . . . . . . . . . . . 5 . . . . . . . . . . . . . . . 2 . . . Robots Built . | . . . . . . . . . . . . . . . . . . . . . . . . . . . . . . . Authchips . | . . . . . . . . . . . . . . . . . . . . . . . . . . . . . . . Time . | . . . . . . . . . . . . . . . . . . . . . . . . . . . . . . . Total Robot Build Rating . | . . . . . . . . . . . . . . . . . . . . . . . . . . . . . . . Part Schematics Acquired 14 | . . . . . 1 1 . . . . 9 . . . . . . . . . . . . . 1 . 2 . . . Parts Built 2 | . . . . . . . . . . . . . 1 . . . . . . 1 . . . . . . . . . . Authchips . | . . . . . . . . . . . . . . . . . . . . . . . . . . . . . . . Time 178 | . . . . . . . . . . . . . 76 . . . . . . 102 . . . . . . . . . . Total Part Build Rating 13 | . . . . . . . . . . . . . 5 . . . . . . 8 . . . . . . . . . . Parts Repaired 7 | . . . 3 . 1 . . . . . . . . . . . . . . 2 . . . 1 . . . . . . Time 276 | . . . 84 . 32 . . . . . . . . . . . . . . 136 . . . 24 . . . . . . Parts Recycled . | . . . . . . . . . . . . . . . . . . . . . . . . . . . . . . . Recycled Matter . | . . . . . . . . . . . . . . . . . . . . . . . . . . . . . . . Retrieved Matter . | . . . . . . . . . . . . . . . . . . . . . . . . . . . . . . . Retrieved Components 19 | . . . . . 9 10 . . . . . . . . . . . . . . . . . . . . . . . . Parts Scanalyzed 1 | . . . . . 1 . . . . . . . . . . . . . . . . . . . . . . . . . Part Schematics Acquired 1 | . . . . . 1 . . . . . . . . . . . . . . . . . . . . . . . . . Parts Damaged . | . . . . . . . . . . . . . . . . . . . . . . . . . . . . . . . Bothacking | -11 -10 -10 -9 -9 -8 -8 -8 -7 -7 -7 -7 -6 -6 -6 -6 -6 -6 -5 -5 -4 -4 -4 -3 -3 -3 -2 -2 -2 -1 -1 ------------ Run | Scr Mat Min Mat Min Mat Sto Gar Fac Low Low Dat Pro Fac Ext Cet Arc Hub Fac Gar Fac Arm Lab Res Qua Sec Res Tes Gar Acc Com Used RIF Installer 3 | . . . . . . . 1 . . . . . . . . . . . 1 . . . . . . . . 1 . . Coupler Efficiency 2 | . . . . . . . . . . . . . . . . . . . 1 . . . . . . . . 1 . . Robots Hacked 7 | . . . . . . . . . . . 1 . . . . . . . . . . . . . . . 1 . . 5 Non-combat . | . . . . . . . . . . . . . . . . . . . . . . . . . . . . . . . Combat 7 | . . . . . . . . . . . 1 . . . . . . . . . . . . . . . 1 . . 5 Robot Hacks Applied 7 | . . . . . . . . . . . 1 . . . . . . . . . . . . . . . 1 . . 5 parse_system 2 | . . . . . . . . . . . 1 . . . . . . . . . . . . . . . 1 . . . formatsys_high 5 | . . . . . . . . . . . . . . . . . . . . . . . . . . . . . . 5 Relay Couplers Released 13 | . . . . . . . 4 . . . . . . . . . 2 . 4 . . . . . . . . 3 . . Machine Destruction 9 | . . . . . . . . . . . . . . . . . 2 . 4 . . . . . . . . 3 . . Programmers 4 | . . . . . . . 4 . . . . . . . . . . . . . . . . . . . . . . . Attached 4 | . . . . . . . . . . . . . . . . . . . . . . . . . . . . 1 . 3 Fabnet Peak Effective % . | . . . . . . . . . . . . . . . . . . . . . . . . . . . . . . . Robots Rewired 22 | . . . . . . . . . 1 . . . . 15 . . . . . . 4 . . . . . 1 1 . . Allies Hacked . | . . . . . . . . . . . . . . . . . . . . . . . . . . . . . . . Hacks Repelled . | . . . . . . . . . . . . . . . . . . . . . . . . . . . . . . . Allies | -11 -10 -10 -9 -9 -8 -8 -8 -7 -7 -7 -7 -6 -6 -6 -6 -6 -6 -5 -5 -4 -4 -4 -3 -3 -3 -2 -2 -2 -1 -1 -------- Run | Scr Mat Min Mat Min Mat Sto Gar Fac Low Low Dat Pro Fac Ext Cet Arc Hub Fac Gar Fac Arm Lab Res Qua Sec Res Tes Gar Acc Com Total Allies 54 | . . . . . . 10 . . 1 . . . . 25 5 . . . . . 5 . . . 1 . 1 1 . 5 Largest Group 12 | . . . . . . 10 . . 1 . . . . 12 12 4 4 . . . 4 . . . 1 . 1 1 . 2 Highest-Rated Group 838 | . . . . . . 173 . . 16 . . . . 483 838 316 316 . . . 188 . . . 10 . 146 138 . 241 Highest-Rated Ally 159 | . . . . . . 29 . . 16 . . . . 159 159 96 96 . . . 47 . . . 10 . 146 138 . 152 Total Orders 2 | . . . . . . . . . . . . . . . 2 . . . . . . . . . . . . . . . STAY 1 | . . . . . . . . . . . . . . . 1 . . . . . . . . . . . . . . . FOLLOW 1 | . . . . . . . . . . . . . . . 1 . . . . . . . . . . . . . . . Ally Attacks 576 | . . . . . . 104 . . 1 . . . . 148 173 13 40 . . . 50 . . . . . 29 12 . 6 Total Damage 13553 | . . . . . . 1272 . . 16 . . . . 3155 3803 361 1649 . . . 1330 . . . . . 1172 443 . 352 Kills 96 | . . . . . . 19 . . . . . . . 22 27 2 12 . . . 6 . . . . . 6 2 . . Allies Corrupted . | . . . . . . . . . . . . . . . . . . . . . . . . . . . . . . . Allies Melted 1 | . . . . . . . . . . . . . . . . . . . . . . . . . . . . 1 . . Intel | -11 -10 -10 -9 -9 -8 -8 -8 -7 -7 -7 -7 -6 -6 -6 -6 -6 -6 -5 -5 -4 -4 -4 -3 -3 -3 -2 -2 -2 -1 -1 ------- Run | Scr Mat Min Mat Min Mat Sto Gar Fac Low Low Dat Pro Fac Ext Cet Arc Hub Fac Gar Fac Arm Lab Res Qua Sec Res Tes Gar Acc Com Robot Analysis Total 134 | . 1 . 1 . 1 . . . . . 131 . . . . . . . . . . . . . . . . . . . Derelict Logs Recovered 7 | . . 1 . 1 . . . . 2 2 . 1 . . . . . . . . . . . . . . . . . . Drone Launches . | . . . . . . . . . . . . . . . . . . . . . . . . . . . . . . . Drone Recoveries . | . . . . . . . . . . . . . . . . . . . . . . . . . . . . . . . Exploration | -11 -10 -10 -9 -9 -8 -8 -8 -7 -7 -7 -7 -6 -6 -6 -6 -6 -6 -5 -5 -4 -4 -4 -3 -3 -3 -2 -2 -2 -1 -1 ------------- Run | Scr Mat Min Mat Min Mat Sto Gar Fac Low Low Dat Pro Fac Ext Cet Arc Hub Fac Gar Fac Arm Lab Res Qua Sec Res Tes Gar Acc Com Turns Passed 29366 | 54 1052 936 2511 273 3011 1095 1733 539 596 588 366 165 466 1384 852 74 301 491 1829 830 1468 420 503 935 2512 364 745 926 641 1706 Spaces Moved 14958 | 46 532 466 1288 124 1489 380 900 369 378 417 209 186 262 673 238 40 181 301 990 382 636 222 287 606 1381 207 405 578 309 476 Core 268 | 17 . . . . . . . . . . 39 186 26 . . . . . . . . . . . . . . . . . Treads . | . . . . . . . . . . . . . . . . . . . . . . . . . . . . . . . Legs 14113 | 29 532 466 1288 124 1489 380 900 369 378 417 170 . . 601 238 40 181 301 990 382 636 222 287 606 1112 207 405 578 309 476 Wheels 308 | . . . . . . . . . . . . . 236 72 . . . . . . . . . . . . . . . . Hover . | . . . . . . . . . . . . . . . . . . . . . . . . . . . . . . . Flight . | . . . . . . . . . . . . . . . . . . . . . . . . . . . . . . . Fastest Speed 50 | 50 120 190 120 120 120 120 120 120 120 123 50 50 50 120 120 120 120 120 117 120 120 120 120 120 116 116 116 120 120 117 Average Speed 137 | 97 151 190 154 188 166 167 138 120 121 123 115 50 113 129 150 120 120 120 126 120 120 120 120 120 125 116 119 120 161 166 Slowest Speed 270 | 120 190 190 190 190 190 190 190 120 123 123 270 50 150 190 190 120 190 190 190 120 190 120 120 120 190 116 120 120 190 190 Overloaded Moves . | . . . . . . . . . . . . . . . . . . . . . . . . . . . . . . . Propulsion Burnouts . | . . . . . . . . . . . . . . . . . . . . . . . . . . . . . . . Robots Hopped . | . . . . . . . . . . . . . . . . . . . . . . . . . . . . . . . Cave-ins Triggered . | . . . . . . . . . . . . . . . . . . . . . . . . . . . . . . . Teleports 1 | . . . . . . . . . . . . . . . . . . . . . . . . . 1 . . . . . Microwarps 15 | . . . . . . . . . . . . . . . . . . . . . . . . . 15 . . . . . Exploration Rate (%) 50 | 3 88 86 87 37 86 68 90 11 54 66 80 41 9 84 55 66 24 11 81 12 47 99 14 59 72 8 41 65 10 12 Regions Visited 30 Branch Regions 17 Pre-discovered Areas 31 | . 1 2 . 1 . . . . . . 27 . . . . . . . . . . . . . . . . . . . Known Exits Taken 23 | . . . 1 . 1 1 . 1 1 1 1 1 1 1 1 1 1 1 . 1 1 1 1 1 1 1 1 . 1 . Unknown Exits Taken 4 | 1 1 1 . 1 . . . . . . . . . . . . . . . . . . . . . . . . . . Scrap Searched 10 | . . 1 . 2 . . . . 3 3 . 1 . . . . . . . . . . . . . . . . . . Spaces Dug 135 | . . . . . . 4 15 2 10 . . . 6 . . . 1 1 24 . 12 2 6 9 23 5 5 . 2 8 Terrain Destroyed 776 | . 12 . . 22 25 4 32 2 21 . . . 21 11 1 1 177 10 183 8 46 6 27 21 84 11 14 . 8 29 Melee 6 | . . . . . . 4 . 2 . . . . . . . . . . . . . . . . . . . . . . Projectile 355 | . . . . . . . 1 . . . . . 21 11 1 1 5 10 71 8 46 6 14 21 84 11 13 . 7 24 AOE 408 | . 12 . . 22 25 . 31 . 21 . . . . . . . 172 . 112 . . . 13 . . . . . . . Terrain Rammed . | . . . . . . . . . . . . . . . . . . . . . . . . . . . . . . . Walls Destroyed . | . . . . . . . . . . . . . . . . . . . . . . . . . . . . . . . Machines Disabled . | . . . . . . . . . . . . . . . . . . . . . . . . . . . . . . . Actions | -11 -10 -10 -9 -9 -8 -8 -8 -7 -7 -7 -7 -6 -6 -6 -6 -6 -6 -5 -5 -4 -4 -4 -3 -3 -3 -2 -2 -2 -1 -1 --------- Run | Scr Mat Min Mat Min Mat Sto Gar Fac Low Low Dat Pro Fac Ext Cet Arc Hub Fac Gar Fac Arm Lab Res Qua Sec Res Tes Gar Acc Com Total 21118 | 52 686 495 1621 143 1829 692 1255 437 468 487 295 257 374 1136 676 58 242 388 1371 682 1010 313 381 734 1848 286 573 731 411 1187 Wait 3354 | . 67 10 173 . 145 211 206 35 23 57 38 70 48 170 382 15 40 52 213 229 84 12 38 42 347 44 56 50 57 440 Move 14670 | 45 531 465 1287 123 1488 379 898 368 377 416 208 185 261 672 237 39 180 300 988 381 635 221 286 605 1126 206 404 576 308 475 Hop . | . . . . . . . . . . . . . . . . . . . . . . . . . . . . . . . Pick Up 252 | 1 13 5 18 2 19 7 11 5 9 4 4 1 10 13 7 . 1 5 10 8 22 9 7 11 25 2 4 4 3 12 Fast Attach 170 | 6 2 . 5 . 10 4 8 1 2 . 2 . 7 4 5 . 2 2 7 6 27 14 2 5 18 . 10 3 2 16 Attach 130 | . 1 . 6 . 4 4 2 4 6 . 7 1 4 . . . . 3 7 7 18 3 2 10 19 2 . 2 2 16 Detach 22 | . . . . . . . . . . . . . . . . . . . 1 1 5 . 2 5 5 . . . . 3 Swap 289 | . 15 2 6 4 27 5 14 7 13 2 5 . 5 6 5 1 3 4 15 10 34 11 7 9 27 3 14 9 9 17 Drop 301 | . 11 1 16 3 33 9 20 3 9 4 2 . 5 13 13 . 2 3 18 10 22 17 7 12 29 . 17 6 6 10 Fire 1555 | . 46 11 91 11 89 61 75 12 22 4 25 . 34 24 27 3 10 19 98 28 160 26 28 32 252 29 68 64 24 182 Melee 9 | . . . . . . 4 . 2 . . . . . . . . . . . . . . . 3 . . . . . . Ram . | . . . . . . . . . . . . . . . . . . . . . . . . . . . . . . . Kick 64 | . . 1 19 . 14 8 2 . . . . . . . . . 4 . 2 2 3 . 2 . . . . . . 7 Crush . | . . . . . . . . . . . . . . . . . . . . . . . . . . . . . . . Escape Stasis 62 | . . . . . . . 19 . . . . . . 18 . . . . 12 . . . . . . . . 4 . 9 Rewire 236 | . . . . . . . . . 7 . . . . 216 . . . . . . . . . . . . . 13 . . Trap 4 | . . . . . . . . . . . 4 . . . . . . . . . . . . . . . . . . . Miscellaneous . | . . . . . . . . . . . . . . . . . . . . . . . . . . . . . . . Route ------- -11/Scrapyard -10/Materials (discovered 4 exits: *Mat x3 / *Min) -10/Mines (discovered 2 exits: *Mat x2) -9/Materials (discovered 3 exits: *Mat x2 / *Min) -9/Mines -8/Materials (discovered 4 exits: *Fac x2 / *Sto x2) -8/Storage -8/Garrison (discovered 3 exits: *Fac x3) -7/Factory (discovered 2 exits: *Low x2) -7/Lower Caves -7/Lower Caves -7/Data Miner -6/Proximity Caves -6/Factory (discovered 3 exits: Fac / *Ext x2) -6/Extension (discovered 2 exits: *Fac / *Cet) -6/Cetus -6/Archives -6/Hub_04(d) (discovered 4 exits: *Fac x4) -5/Factory (discovered 3 exits: Upp x2 / Gar) -5/Garrison -4/Factory (discovered 2 exits: *Res / *Arm) -4/Armory (discovered 2 exits: Res / *Lab) -4/Lab -3/Research (discovered 2 exits: *Qua x2) -3/Quarantine (discovered 2 exits: *Res / *Sec) -3/Section 7 -2/Research (discovered 2 exits: *Tes x2) -2/Testing -2/Garrison (discovered 3 exits: *Acc x3) -1/Access -1/Command To Epsilon Eridani History --------- Turn | Location | Event 3 | -11/Scrapyard | Discovered new exit (range 16) 55 | -11/Scrapyard | Entered Materials 359 | -10/Materials | Discovered new exit (range 8) 412 | -10/Materials | Discovered new exit (range 14) 656 | -10/Materials | Discovered new exit (range 5) 876 | -10/Materials | Discovered new exit (range 4) 1018 | -10/Materials | Build established: Mutant 1107 | -10/Materials | Entered Mines 1222 | -10/Mines | Met a Derelict shopkeep closing up shop 1343 | -10/Mines | Discovered new exit (range 14) 1371 | -10/Mines | Discovered new exit (range 15) 2043 | -10/Mines | Entered Materials 2043 | -9/Materials | Evolved 2 slots: Propulsion x1, Utility x1 2171 | -9/Materials | Repaired Beam Cannon 2199 | -9/Materials | Repaired Assault Rifle 2232 | -9/Materials | Repaired Imp. Aluminum Leg 2570 | -9/Materials | Discovered new exit (range 3) 3087 | -9/Materials | Discovered new exit (range 16) 3312 | -9/Materials | System corruption reached 10% 3472 | -9/Materials | Identified exit to Mines 4554 | -9/Materials | Entered Mines 4625 | -9/Mines | Found a damaged Exp. Sensor Array with a note attached 4630 | -9/Mines | Found Prototype Device 4813 | -9/Mines | Discovered new exit (range 3) 4827 | -9/Mines | Entered Materials 4827 | -8/Materials | Evolved 2 slots: Utility x1, Weapon x1 5133 | -8/Materials | Discovered new exit (range 11) 5352 | -8/Materials | Build established: Gunner 5356 | -8/Materials | Discovered new exit (range 6) 5911 | -8/Materials | Repaired Cooling System 6237 | -8/Materials | Discovered new exit (range 7) 6479 | -8/Materials | Build established: Tank 6535 | -8/Materials | Identified exit to Storage 6807 | -8/Materials | Discovered new exit (range 4) 6909 | -8/Materials | Identified Exp. Sensor Array 7838 | -8/Materials | Entered Storage 7848 | -8/Storage | Assisted by bots powering up and referring to "LRC-V3" 8152 | -8/Storage | Build established: Commander-Tank 8666 | -8/Storage | Core integrity fell below 50% 8683 | -8/Storage | Build established: Tank 8816 | -8/Storage | Garrison activated, responded to threat 8932 | -8/Storage | Identified exit to Garrison 8933 | -8/Storage | Entered Garrison 8966 | -8/Garrison | Triggered checkpoint 9184 | -8/Garrison | Triggered checkpoint 9306 | -8/Garrison | Discovered new exit (range 15) 9343 | -8/Garrison | Installed Relay Interface Framework 9451 | -8/Garrison | Triggered checkpoint 9736 | -8/Garrison | Discovered new exit (range 8) 9807 | -8/Garrison | Triggered checkpoint 9988 | -8/Garrison | Triggered checkpoint 10174 | -8/Garrison | Discovered new exit (range 10) 10666 | -8/Garrison | Entered Factory 10666 | -7/Factory | Evolved 2 slots: Utility x2 10816 | -7/Factory | Identified exit to Lower Caves 10976 | -7/Factory | Build established: Skirmisher 11205 | -7/Factory | Entered Lower Caves 11277 | -7/Lower Caves | Attracted the attention of an 0b10 outpost 11406 | -7/Lower Caves | Learned Factory trap positions 11463 | -7/Lower Caves | Attracted the attention of an 0b10 checkpoint 11706 | -7/Lower Caves | Learned Factory emergency access door positions 11758 | -7/Lower Caves | Discovered new exit (range 4) 11800 | -7/Lower Caves | Identified exit to Lower Caves 11801 | -7/Lower Caves | Entered another Lower Caves area 11874 | -7/Lower Caves | Learned 4 Factory zone layouts 11908 | -7/Lower Caves | Encountered a Warlord checkpoint 12269 | -7/Lower Caves | Learned location of 1 exit from Factory 12355 | -7/Lower Caves | Discovered new exit (range 13) 12369 | -7/Lower Caves | Identified exit to Data Miner 12389 | -7/Lower Caves | Entered Data Miner 12389 | -7/Data Miner | Discovered new exit (range 6) 12450 | -7/Data Miner | Met Data Miner 12556 | -7/Data Miner | Learned location of Section 7 (-3) 12556 | -7/Data Miner | Acquired the access code to Warlord's prototype stash 12577 | -7/Data Miner | Received God Mode back door access code from Data Miner 12597 | -7/Data Miner | Interfaced with the Data Conduit 12740 | -7/Data Miner | Core integrity fell below 50% 12755 | -7/Data Miner | Lost 15 parts (2p5n6u2w) 12755 | -7/Data Miner | Identified exit to Proximity Caves 12755 | -7/Data Miner | Entered Proximity Caves 12757 | -6/Proximity Caves | Core integrity fell below 20% 12778 | -6/Proximity Caves | Spotted B-75 Beast 12863 | -6/Proximity Caves | Learned Factory interactive machine intel 12914 | -6/Proximity Caves | Discovered new exit (range 10) 12917 | -6/Proximity Caves | Identified exit to Factory 12920 | -6/Proximity Caves | Entered Factory 12920 | -6/Factory | Evolved 2 slots: Power x1, Propulsion x1 12921 | -6/Factory | Identified exit to Extension 12922 | -6/Factory | Identified exit to Factory 12923 | -6/Factory | Loaded intel: 86 trap records 12925 | -6/Factory | Loaded intel: 251 machine locations 12926 | -6/Factory | Loaded intel: 53 interactive machine locations 13009 | -6/Factory | Build established: Mutant 13105 | -6/Factory | Found Rocket Array 13135 | -6/Factory | Fabricated Cld. Plasma Cannon? 13377 | -6/Factory | Discovered exit to Extension (range 8) 13386 | -6/Factory | Entered Extension 13387 | -6/Extension | Loaded intel: 30 machine locations 13490 | -6/Extension | Rescued a captive Derelict 13672 | -6/Extension | Build established: Scavenger-Gunner 13679 | -6/Extension | Rescued a captive Derelict 13679 | -6/Extension | Rescued a captive Derelict 13843 | -6/Extension | Rescued A7 14331 | -6/Extension | Spotted B-75 Beast 14334 | -6/Extension | Destroyed B-75 Beast 14341 | -6/Extension | Spotted B-75 Beast 14361 | -6/Extension | Destroyed B-75 Beast 14519 | -6/Extension | Rescued a captive Derelict 14520 | -6/Extension | Rescued a captive Derelict 14590 | -6/Extension | Rescued a captive Derelict 14591 | -6/Extension | Rescued a captive Derelict 14711 | -6/Extension | Rescued a captive Derelict 14711 | -6/Extension | Rescued a captive Derelict 14735 | -6/Extension | Discovered exit to Factory (range 10) 14737 | -6/Extension | Discovered new exit (range 6) 14753 | -6/Extension | Identified exit to Cetus 14770 | -6/Extension | Entered Cetus 14770 | -6/Cetus | Accompanied by 12 allies (A7) 14771 | -6/Cetus | Loaded intel: 24 machine locations 14775 | -6/Cetus | Acquired a Cetus Manufacturing Module code from A7 14790 | -6/Cetus | Spotted Cetus Guard 14790 | -6/Cetus | Spotted Cetus Guard 14792 | -6/Cetus | Spotted Cetus Guard 14797 | -6/Cetus | Allies destroyed Cetus Guard 14802 | -6/Cetus | Allies destroyed Cetus Guard 14803 | -6/Cetus | Spotted Cetus Guard 14803 | -6/Cetus | Allies destroyed Cetus Guard 14807 | -6/Cetus | Destroyed Cetus Guard 15020 | -6/Cetus | P-60 Hacker assimilated allied J6-97S(b) 15100 | -6/Cetus | Started Cetus Manufacturing Module 15125 | -6/Cetus | Manufactured an Enhanced Grunt 15150 | -6/Cetus | Manufactured an Enhanced Grunt 15175 | -6/Cetus | Manufactured an Enhanced Grunt 15200 | -6/Cetus | Manufactured an Enhanced Grunt 15225 | -6/Cetus | Manufactured an Enhanced Grunt 15324 | -6/Cetus | Destroyed A7 15328 | -6/Cetus | Extracted ID and sensor layout for unrecognized location from A7's data core 15331 | -6/Cetus | Found Prototype Protection 15331 | -6/Cetus | Identified Med. Regenerative Plating 15392 | -6/Cetus | Discovered new exit (range 15) 15532 | -6/Cetus | Spotted Cetus Guard 15535 | -6/Cetus | Spotted Cetus Guard 15540 | -6/Cetus | Spotted Cetus Guard 15542 | -6/Cetus | Allies destroyed Cetus Guard 15549 | -6/Cetus | Destroyed Cetus Guard 15551 | -6/Cetus | Allies destroyed Cetus Guard 15553 | -6/Cetus | Spotted Cetus Guard 15554 | -6/Cetus | Destroyed Cetus Guard 15617 | -6/Cetus | Identified exit to Archives 15622 | -6/Cetus | Entered Archives 15622 | -6/Archives | Accompanied by 4 allies 15623 | -6/Archives | Loaded intel: 8 machine locations 15669 | -6/Archives | Discovered new exit (range 16) 15689 | -6/Archives | Identified exit to Hub_04(d) 15696 | -6/Archives | Entered Hub_04(d) 15696 | -6/Hub_04(d) | Accompanied by 4 allies 15697 | -6/Hub_04(d) | Loaded intel: 107 machine locations 15930 | -6/Hub_04(d) | Garrison activated, responded to threat 15988 | -6/Hub_04(d) | Network Hub disabled 15997 | -6/Hub_04(d) | Entered Factory 15997 | -5/Factory | Evolved 2 slots: Utility x2 15998 | -5/Factory | Loaded intel: 276 machine locations 16235 | -5/Factory | Identified exit to Upper Caves 16486 | -5/Factory | Identified exit to Garrison 16488 | -5/Factory | Entered Garrison 16489 | -5/Garrison | Loaded intel: 30 machine locations 16550 | -5/Garrison | Triggered checkpoint 16784 | -5/Garrison | Garrison Relay disabled 16838 | -5/Garrison | Triggered checkpoint 16838 | -5/Garrison | Spotted B-75 Beast 16944 | -5/Garrison | Expanded RIF knowledge: Coupler Efficiency 17376 | -5/Garrison | Triggered checkpoint 17407 | -5/Garrison | Destroyed B-75 Beast 17525 | -5/Garrison | Discovered new exit (range 14) 17543 | -5/Garrison | Phase Generator disabled 17560 | -5/Garrison | Identified exit to Factory 17762 | -5/Garrison | Triggered checkpoint 17834 | -5/Garrison | System corruption reached 10% 17968 | -5/Garrison | Triggered checkpoint 18317 | -5/Garrison | Entered Factory 18317 | -4/Factory | Evolved 2 slots: Utility x1, Weapon x1 18318 | -4/Factory | Loaded intel: 310 machine locations 18349 | -4/Factory | Discovered new exit (range 4) 18352 | -4/Factory | Identified exit to Research 18459 | -4/Factory | Build established: Scavenger-Skirmisher 18487 | -4/Factory | Fabricated Exp. Sensor Array (x1) 19026 | -4/Factory | Repaired Cld. Plasma Cannon 19085 | -4/Factory | Repaired Adv. Cooling System 19098 | -4/Factory | First assault squad dispatched 19135 | -4/Factory | Discovered new exit (range 11) 19146 | -4/Factory | Identified exit to Armory 19147 | -4/Factory | Entered Armory 19148 | -4/Armory | Loaded intel: 71 machine locations 19167 | -4/Armory | Spotted B-86 Titan 19182 | -4/Armory | Destroyed B-86 Titan 19304 | -4/Armory | Lost 4 parts (2u2w) 19647 | -4/Armory | First assault squad dispatched 19755 | -4/Armory | Lost 5 parts (1p1n1u2w) 19761 | -4/Armory | Destroyed 7 combat bots 20132 | -4/Armory | Intercept squad dispatched 20142 | -4/Armory | Spotted Tracker 20149 | -4/Armory | Destroyed Tracker 20149 | -4/Armory | Spotted Tracker 20164 | -4/Armory | Spotted Combat Programmer 20172 | -4/Armory | Spotted Combat Programmer 20186 | -4/Armory | System corruption reached 10% 20190 | -4/Armory | Destroyed Tracker 20194 | -4/Armory | Core integrity fell below 50% 20207 | -4/Armory | Destroyed Combat Programmer 20211 | -4/Armory | Found Exp. Phase Shifter 20226 | -4/Armory | Destroyed Combat Programmer 20235 | -4/Armory | Found Exp. Targeting Computer 20240 | -4/Armory | Found Exp. Targeting Computer 20249 | -4/Armory | Lost 11 parts (2p2n2u5w) 20299 | -4/Armory | Discovered exit to Research (range 16) 20613 | -4/Armory | Discovered new exit (range 3) 20614 | -4/Armory | Identified exit to Lab 20615 | -4/Armory | Entered Lab 20615 | -4/Lab | Discovered exit to Research (range 9) 20629 | -4/Lab | Hidden lab's door opened automatically 20629 | -4/Lab | Sensor layout match revealed 20630 | -4/Lab | Gained access to the hidden lab's interior 20635 | -4/Lab | Detected by scanners 20644 | -4/Lab | Confronted by A5 20696 | -4/Lab | Core integrity fell below 20% 20716 | -4/Lab | Destroyed A5 20723 | -4/Lab | Found Med. Regenerative Plating 20743 | -4/Lab | Lost 6 parts (1p3u2w) 20765 | -4/Lab | Found Alien Artifact 20765 | -4/Lab | Identified Core Regenerator 20765 | -4/Lab | Used Core Regenerator, restored core integrity (+287) 20778 | -4/Lab | Found Alien Artifact 20778 | -4/Lab | Identified Integrated Mediator 20778 | -4/Lab | Installed Integrated Mediator, increased core attachment efficiency. 20787 | -4/Lab | Found Alien Artifact 20802 | -4/Lab | Found Alien Artifact 20833 | -4/Lab | Found Deep Network Scanner 20837 | -4/Lab | Found Prototype Protection 20837 | -4/Lab | Identified Exp. Powered Armor 20845 | -4/Lab | Found Prototype Energy Gun 20845 | -4/Lab | Identified Hyp. EM Gauss Rifle 20873 | -4/Lab | Decrypted terminal 20975 | -4/Lab | Decrypted terminal 20975 | -4/Lab | Decrypted terminal 20978 | -4/Lab | Found Alien Artifact 20978 | -4/Lab | Identified LC Capacitor 21004 | -4/Lab | Found Prototype Special Weapon 21004 | -4/Lab | Identified Gui. Remote Datajack 21035 | -4/Lab | Entered Research 21035 | -3/Research | Evolved 2 slots: Utility x2 21036 | -3/Research | Loaded intel: 104 machine locations 21146 | -3/Research | Destroyed 9 combat bots 21235 | -3/Research | Revision forces began assault on 0b10 21283 | -3/Research | Build established: Hacker-Gunner 21287 | -3/Research | Met up with Revision 17++ 21335 | -3/Research | Spotted B-86 Titan 21340 | -3/Research | Destroyed B-86 Titan 21357 | -3/Research | Identified exit to Quarantine 21496 | -3/Research | Identified Core Reset Matrix 21496 | -3/Research | Identified Transdimensional Reconstructor 21538 | -3/Research | Entered Quarantine 21539 | -3/Quarantine | Loaded intel: 82 machine locations 21598 | -3/Quarantine | Repaired Enh. Quantum Rifle 21665 | -3/Quarantine | Cryocooling Duct disabled 21680 | -3/Quarantine | Ambient heat levels rising (+20) 21680 | -3/Quarantine | Non-combat units ordered to evacuate 21753 | -3/Quarantine | Found Transdimensional Reconstructor 21913 | -3/Quarantine | Found Alien Artifact 21988 | -3/Quarantine | Intercept squad dispatched 21997 | -3/Quarantine | Spotted Tracker 21997 | -3/Quarantine | Discovered new exit (range 10) 21997 | -3/Quarantine | Spotted Combat Programmer 21998 | -3/Quarantine | Spotted Tracker 22004 | -3/Quarantine | Destroyed Combat Programmer 22019 | -3/Quarantine | Destroyed Tracker 22025 | -3/Quarantine | Spotted Combat Programmer 22033 | -3/Quarantine | Destroyed Tracker 22038 | -3/Quarantine | System corruption reached 10% 22040 | -3/Quarantine | Destroyed Combat Programmer 22056 | -3/Quarantine | Lost 4 parts (1p3w) 22059 | -3/Quarantine | Identified exit to Research 22168 | -3/Quarantine | Found Alien Impact Weapon 22320 | -3/Quarantine | Identified Core Stripper 22328 | -3/Quarantine | Spotted Fortress 22341 | -3/Quarantine | Destroyed Fortress 22361 | -3/Quarantine | Found Exp. Force Field 22366 | -3/Quarantine | Found Vortex Chain Reactor 22369 | -3/Quarantine | Found Vortex Chain Reactor 22376 | -3/Quarantine | Found Centrium Heavy Armor Plating 22385 | -3/Quarantine | Found Exp. EM Disruption Field 22466 | -3/Quarantine | Intercept squad dispatched 22468 | -3/Quarantine | Discovered new exit (range 5) 22471 | -3/Quarantine | Identified exit to Section 7 22473 | -3/Quarantine | Entered Section 7 22474 | -3/Section 7 | Loaded intel: 167 machine locations 22494 | -3/Section 7 | Found Alien Artifact 22494 | -3/Section 7 | Identified Microwarp Drive 22593 | -3/Section 7 | Found Alien Artifact 22616 | -3/Section 7 | Identified Integrity Redistributor 22616 | -3/Section 7 | Identified Subatomic Replicator 22619 | -3/Section 7 | Used Integrity Redistributor, redistributed integrity from core (-205) 22802 | -3/Section 7 | Spotted S7 Guard 22827 | -3/Section 7 | Destroyed S7 Guard 22871 | -3/Section 7 | Found Alien Artifact 22887 | -3/Section 7 | Core integrity fell below 50% 22982 | -3/Section 7 | Spotted S7 Guard 23019 | -3/Section 7 | Destroyed S7 Guard 23043 | -3/Section 7 | Found Prototype Protection 23043 | -3/Section 7 | Identified Hvy. Regenerative Plating 23079 | -3/Section 7 | Found Alien Artifact 23131 | -3/Section 7 | Warped through subspace 23468 | -3/Section 7 | Core integrity fell below 20% 23475 | -3/Section 7 | Identified Integrated Thermoelectric Network 23475 | -3/Section 7 | Identified Core Physics Calibrator 23475 | -3/Section 7 | Installed Integrated Thermoelectric Network, gained heat-energy exchange potential 23574 | -3/Section 7 | Spotted B-86 Titan 23590 | -3/Section 7 | Destroyed B-86 Titan 23659 | -3/Section 7 | Spotted Executioner 23659 | -3/Section 7 | Spotted Executioner 23671 | -3/Section 7 | Destroyed Executioner 23677 | -3/Section 7 | Destroyed Executioner 23685 | -3/Section 7 | Found Exp. Core Analyzer 23731 | -3/Section 7 | Found Transdimensional Reconstructor 23733 | -3/Section 7 | Found Transdimensional Reconstructor 23822 | -3/Section 7 | Found Alien Artifact 23912 | -3/Section 7 | Intercept squad dispatched 23933 | -3/Section 7 | Spotted Tracker 23936 | -3/Section 7 | Destroyed Tracker 24000 | -3/Section 7 | Spotted Combat Programmer 24004 | -3/Section 7 | Destroyed Combat Programmer 24024 | -3/Section 7 | Spotted Striker 24024 | -3/Section 7 | Spotted Striker 24031 | -3/Section 7 | Destroyed Striker 24038 | -3/Section 7 | Destroyed Striker 24039 | -3/Section 7 | Spotted Striker 24046 | -3/Section 7 | Destroyed Striker 24047 | -3/Section 7 | Spotted Striker 24060 | -3/Section 7 | Destroyed Striker 24104 | -3/Section 7 | Found Alien Energy Gun 24105 | -3/Section 7 | Identified Sigix Sheargun 24109 | -3/Section 7 | Found Sigix Sheargun 24337 | -3/Section 7 | Found Sigix Sheargun 24341 | -3/Section 7 | Found Sigix Sheargun 24368 | -3/Section 7 | Spotted Executioner 24384 | -3/Section 7 | Spotted Executioner 24391 | -3/Section 7 | Destroyed Executioner 24398 | -3/Section 7 | Destroyed Executioner 24404 | -3/Section 7 | Found Exp. Targeting Computer 24464 | -3/Section 7 | Spotted B-99 Colossus 24537 | -3/Section 7 | Found Alien Artifact 24537 | -3/Section 7 | Identified LRC Energy Well 24537 | -3/Section 7 | Installed LRC Energy Well, increased energy storage capacity (+250) 24544 | -3/Section 7 | Found Alien Artifact 24544 | -3/Section 7 | Identified LRC Insulator 24544 | -3/Section 7 | Installed LRC Insulator, gained EM resistance (25) 24572 | -3/Section 7 | Build established: Scavenger-Gunner 24599 | -3/Section 7 | Found Alien Artifact 24599 | -3/Section 7 | Identified Core Expander 24599 | -3/Section 7 | Installed Core Expander, added new Propulsion slot 24768 | -3/Section 7 | First assault squad dispatched 24985 | -3/Section 7 | Entered Research 24985 | -2/Research | Evolved 2 slots: Power x1, Utility x1 24986 | -2/Research | Loaded intel: 107 machine locations 25019 | -2/Research | Spotted B-90 Cyclops 25085 | -2/Research | Found Corrupted Exp. Phase Shifter 25220 | -2/Research | Identified exit to Testing 25349 | -2/Research | Entered Testing 25350 | -2/Testing | Loaded intel: 68 machine locations 25390 | -2/Testing | Spotted PP-I4MP384ONR 25399 | -2/Testing | Scanned by Researcher 25460 | -2/Testing | Destroyed PP-I4MP384ONR 25480 | -2/Testing | Found Exp. Target Analyzer 25546 | -2/Testing | Found Prototype Protection 25546 | -2/Testing | Identified SHELL Armor 25619 | -2/Testing | Spotted PY-33DFMKLX9V 25630 | -2/Testing | Rewired PY-33DFMKLX9V 25684 | -2/Testing | Found Prototype Ballistic Cannon 25684 | -2/Testing | Identified Omega Cannon 25745 | -2/Testing | Found Prototype Ballistic Gun 25745 | -2/Testing | Identified Hyp. Multirail 25882 | -2/Testing | Found Prototype Launcher 25882 | -2/Testing | Identified Z-bomb Delivery System 26005 | -2/Testing | Destroyed 7 combat bots 26050 | -2/Testing | Identified exit to Garrison 26094 | -2/Testing | Entered Garrison 26094 | -2/Garrison | Accompanied by 1 ally 26095 | -2/Garrison | Loaded intel: 41 machine locations 26144 | -2/Garrison | Triggered checkpoint 26178 | -2/Garrison | Garrison Relay disabled 26247 | -2/Garrison | Spotted B-90 Cyclops 26269 | -2/Garrison | Allies destroyed B-90 Cyclops 26274 | -2/Garrison | Triggered checkpoint 26298 | -2/Garrison | Triggered checkpoint 26334 | -2/Garrison | Destroyed 11 combat bots 26468 | -2/Garrison | Triggered checkpoint 26479 | -2/Garrison | Discovered new exit (range 14) 26517 | -2/Garrison | Found Unknown Hackware 26517 | -2/Garrison | Identified Relay Coupler [Proto] 26524 | -2/Garrison | Found Relay Coupler [Proto] 26528 | -2/Garrison | Found Relay Coupler [Proto] 26530 | -2/Garrison | Found Relay Coupler [Proto] 26578 | -2/Garrison | Expanded RIF knowledge: Coupler Efficiency 26746 | -2/Garrison | Triggered checkpoint 26758 | -2/Garrison | Discovered new exit (range 12) 26761 | -2/Garrison | Spotted B-75 Beast 26812 | -2/Garrison | Spotted B-75 Beast 26816 | -2/Garrison | Destroyed B-75 Beast 26826 | -2/Garrison | Destroyed B-75 Beast 26849 | -2/Garrison | Rewired B-75 Beast 26979 | -2/Garrison | Discovered new exit (range 69) 26979 | -2/Garrison | Discovered new exit (range 25) 26979 | -2/Garrison | Discovered new exit (range 24) 27017 | -2/Garrison | Identified exit to Access 27020 | -2/Garrison | Entered Access 27020 | -1/Access | Evolved 2 slots: Power x1, Utility x1 27021 | -1/Access | Loaded intel: 107 machine locations 27561 | -1/Access | First assault squad dispatched 27647 | -1/Access | Discovered new exit (range 8) 27659 | -1/Access | Identified exit to Command 27661 | -1/Access | Entered Command 27662 | -1/Command | Loaded intel: 58 machine locations 27677 | -1/Command | Used Subatomic Replicator to replicate Sigix Sheargun 27937 | -1/Command | First assault squad dispatched 28106 | -1/Command | Destroyed 9 combat bots 28297 | -1/Command | Destroyed 8 combat bots 28343 | -1/Command | Spotted Alpha 7 28344 | -1/Command | Spotted Striker 28344 | -1/Command | Assimilated Alpha 7 with formatsys_high 28345 | -1/Command | Spotted Striker 28345 | -1/Command | Spotted Executioner 28346 | -1/Command | Spotted Executioner 28346 | -1/Command | Spotted Executioner 28347 | -1/Command | Spotted Alpha 7 28347 | -1/Command | Spotted Executioner 28347 | -1/Command | Spotted B-99 Colossus 28351 | -1/Command | Spotted B-99 Colossus 28359 | -1/Command | Assimilated Striker with formatsys_high 28361 | -1/Command | Assimilated Executioner with formatsys_high 28364 | -1/Command | Assimilated Striker with formatsys_high 28367 | -1/Command | Assimilated Alpha 7 with formatsys_high 28379 | -1/Command | Destroyed Executioner 28379 | -1/Command | Destroyed Executioner 28442 | -1/Command | Lost 4 parts (1p2u1w) 28449 | -1/Command | High security lockdown imminent 28529 | -1/Command | High security lockdown engaged 28672 | -1/Command | Destroyed 20 combat bots 28682 | -1/Command | Spotted Investigator 28692 | -1/Command | Destroyed Investigator 28765 | -1/Command | Destroyed 15 combat bots 28834 | -1/Command | Spotted Executioner 28838 | -1/Command | Destroyed Executioner 28841 | -1/Command | Destroyed Executioner 28892 | -1/Command | Destroyed 19 combat bots 29064 | -1/Command | Destroyed Striker 29064 | -1/Command | Spotted Executioner 29066 | -1/Command | Destroyed Executioner 29071 | -1/Command | Destroyed Executioner 29081 | -1/Command | Spotted Striker 29081 | -1/Command | Spotted Striker 29081 | -1/Command | Spotted Striker 29081 | -1/Command | Spotted Striker 29085 | -1/Command | Destroyed Striker 29092 | -1/Command | Destroyed Striker 29096 | -1/Command | Destroyed Striker 29102 | -1/Command | Destroyed Striker 29113 | -1/Command | Destroyed Executioner 29132 | -1/Command | Destroyed Striker 29153 | -1/Command | Destroyed 28 combat bots 29224 | -1/Command | Found Exp. Core Analyzer 29227 | -1/Command | Found Adv. Kinecellerator 29323 | -1/Command | Spotted Striker 29360 | -1/Command | Discovered new exit (range 9) 29367 | *** | Escaped! Last Messages --------------- 29361_ Stasis field depleted. 29362_ Striker system corruption misinterpreted. 29362_ Striker triggered Stasis Trap. 29362_ A bubble of rippling energy engulfs the area. 29362_ Field strength at 92. 29363_ Field strength at 84. 29363_ Penetrated by Slug. 29363_ Mic. Antimatter Reactor destroyed. 29363_ Penetrated by Slug. 29363_ Slug penetrates Wall. 29363_ Penetrated by Slug. 29363_ Slug penetrates Wall. 29364_ Field strength at 70. 29364_ P-80 Master resets Striker, system corruption cleaned. 29365_ Field strength at 62. 29366_ Field strength at 54. 29367_ Penetrated by Slug. 29367_ Slug penetrates Wall. 29367_ Field strength at 40. 29367_ P-80 Master resets Striker, system corruption cleaned. Map ----- +----------------------------------------------------+ | ???????????????????""????????????????????????????? | | ?????????????????????????????????????????????????? | | ?????????????????????????????????????????????????? | | ?????????????????????????????????????????????????? | | ?????????????????????????????????????????????????? | | ?????????????????????????????????????????????????? | | ?????????????????????????????????????????????????? | | ?????????????????????????????????????????????????? | | ?????????????????????????????????????????????????? | | ?????????????????????????????????????????????????? | | ?????????????????????????????????????????????????? | | ####?###?????????????????????????????????????????? | | #?????????????????????????????????????????? | | #?????????????????????????????????????????? | | """#?????????????????????????????????????????? | | """#?????????????????????????????????????????? | | R"#?????????????????????????????????????????? | | * """#?????????????????????????????????????????? | | "" #?????????????????????????????????????????? | | #??????????##############?????????????????? | | %##??????#### #?????????????????? | | % "########;##BB #?????????????????? | | | *=""## # # # ;BB ^ #?????????????????? | | ######%%" ^^^!^^ #?????????????????? | | =% * %%%=^*%=^ ^ ###???????????????? | | % ! %%[^^^!%^^^^ "@ ## #??????????????? | | % % %!!! %p^ ^ ^ "" #?# #?????????????? | | %= %% !%! ^^p ^^^^^ #??# #????????????? | | /!%"""^^^ ^^K^ % ;#??# #???????????? | | %" ""# # ;%; ; ##???# #??????????? | | ===" ##########; #?????# #?????????? | | % %!]!%#????????#; #??????#"########## | | %" %" #????????######;###;####???????#=!|=%[* | | /"! %##?????????????###??##??????????#!![%!! | | = * [# #??????????????????????????????#=*######## | | %= ##???????????????????????????????# [#??????? | | !!!!%[#???????????????????????????????# #??????? | | %%=% ##???????????????????????????????# #??????? | | !%[==!#######################??????????# #??????? | | =|!%[!!%!!=%!==%%!%%%%=%*=%%#??????????# #??????? | | %![!=######################%#??????????# #??????? | | ######????????????????????#=#??????????# #??????? | | ??????????????????????????# ##?????????# #??????? | | ??????????????????????????#="#?????????# #??????? | | ??????????????????????????#!##?????????# #??????? | | ??????????????????????????#%#??????????# #??????? | | ?????????????????""???????#!#??????????# #??????? | | ????????????????"""???????#=#??????????# #??????? | | "???????????????"T????????#!############ #??????? | | "???????????????"""???????#!## ## #??????" | +----------------------------------------------------+ Best States ------------- Heat Dissipation 139 Energy Generation 99 Energy Capacity 1880 Matter Stores 300 Matter Capacity 300 Sight Range 16 Robot Scan Range 20 Terrain Scan Density 10 Armor Coverage 1000 Resistance: TH 30 Resistance: EM 100 Core Shielding 30 Weapon Cycling 20 Phase Shifting 20 Evasion (%) 75 Targeting Accuracy 24 Target Analysis 10 Core Analysis 12 Particle Charging 25 Offensive Hacking 25 Relay Coupler Types 1 Relay Coupler Value 18 Trap Extractor Capacity 6 Item Schematics ----------------- Exp. Sensor Array | -8/Materials | Scanalyzed Adv. Signal Interpreter | -8/Storage | Hacked Combat Drone Bay | -7/Data Miner | Free Lgt. Regenerative Plating | -7/Data Miner | Free Cld. Aerolev Unit | -7/Data Miner | Free Gravity Neutralizer | -7/Data Miner | Free Cld. Plasma Cannon | -7/Data Miner | Free Gyrokinetic Inverter | -7/Data Miner | Free Adv. Hacking Suite | -7/Data Miner | Free Centrium Wheel | -7/Data Miner | Free Mass Driver | -7/Data Miner | Free Enh. Coil Gun | -3/Section 7 | Archive Neutron Missile Launcher | -2/Testing | Archive Prc. Phase Gun | -2/Testing | Archive Robot Schematics ------------------ B-48 Gladiator | -7/Data Miner | Free H-66 Slayer | -7/Data Miner | Free M-22 Extractor | -7/Data Miner | Free G-50 Soldier | -7/Data Miner | Free R-10 Processor | -7/Data Miner | Free G-73 Enforcer | -2/Testing | Archive A-02 Transporter | -2/Testing | Archive Fabricated ------------ Cld. Plasma Cannon | x1 | -6/Factory Exp. Sensor Array | x1 | -4/Factory Alien Tech Used ----------------- Core Regenerator Integrated Mediator LC Capacitor Core Stripper Microwarp Drive Integrity Redistributor Transdimensional Reconstructor Integrated Thermoelectric Network Sigix Sheargun LRC Energy Well LRC Insulator Core Expander Subatomic Replicator Achievements -------------- None Challenges ------------ None Game ------ Seed CooledCarbideTriangulator Manual? 0 Play Time 04:18:16 Cumulative 1544.8 hours Start 2022.07.11 @ 13:30:28 End 2022.07.12 @ 19:33:39 Sessions 3 Manual Loads 0 Difficulty Rogue Special Mode None Game No. 542 Rogue 542 Adventurer 0 Explorer 0 Win Type 0 Total 109 Types 23/12/45/6/1/2/18/1/1 Lore% 97 Gallery% 97 Achievement% 86 Wizard Run 0 Options --------- ASCII 0 Keyboard 0 Movement Numpad Keybinds 0 Fullscreen 1 Font 18/SmallcapsGlow Map View 76x50 Tactical HUD 1 Map Filters NONE Filters NONE Steam 1 RUN: 6ce8459c-28be-4094-96b7-6bb348c26aba